{"text_format":"1","workbook":"xlsx","n_sheets":25,"sheets":["SetupFEP","Title page","Mahinga Kai","Property Details","Sum of Act","Risk Ass","Maps","Irrigation","Nutrient","Soil","CollectedAnimalEffluent","Waterbody","PointSource","WaterUse","Nutrients_OTOP","Nutrients_Waimak","MK_Selwyn","MK_OTOP","RA_OTOP","BD_OTOP","MK_Wait","Sheet1","BD_Wait","Data sheet - do not touch","Objective Evidence"],"not_rendered":{"charts":0,"images":6,"macros":1,"external_links":0,"defined_names":74,"comments":0,"pivot_tables":0},"unopened":[],"bounds":{"document_bytes":16777216,"sheet_cells":100000,"rows_first":2000,"rows_last":500,"rows_between":2000,"halvings":0,"cell_chars":16384,"cell_head_chars":4096},"cells_cut":0,"cells_raw":0,"read":"whole","date_system":"1900"}

{"sheet":"SetupFEP","index":0,"n_rows":28,"n_cols":5,"rows_kept":28,"cut":false,"hidden":false,"merged":[[2,1,2,4]]}
[]
[]
[null,"Including and hiding sheets."]
[null,"These sheets are standard and cannot be removed."]
[null,1,{"$f":"INDEX(Sheetname,B5)","v":"SetupFEP"}]
[null,2,{"$f":"INDEX(Sheetname,B6)","v":"Title page"}]
[null,3,"Mahinga Kai"]
[null,4,"Property Details"]
[null,5,"Sum of Act"]
[null,6,"Risk Ass"]
[null,"These sheets can be included [ TICKED ] or hidden [ UNTICKED ]"]
[null,7,"Maps","ü","Standard Irrigation Objectives"]
[null,8,"Irrigation","ü","Standard Nutrient Objectives"]
[null,9,"Nutrient","ü","Nutrient management specific to OTOP Zone"]
[null,10,"Soil","ü","Nutrient management specific to Waimakariri Zone"]
[null,11,"CollectedAnimalEffluent","ü","Standard Soil Objectives"]
[null,12,"Waterbody","ü","Standard Waterbody Objectives"]
[null,13,"PointSource","ü","Standard Effluent Objectives"]
[null,14,"WaterUse","ü","Standard Point Source Objectives"]
[null,15,{"$f":"INDEX(Sheetname,B20)","v":"Nutrients_OTOP"},"ü","Standard Water Use Objectives"]
[null,16,"Nutrients_Waimak","ü","Mahinga Kai objectives specific to Selwyn/Waihora Zone"]
[null,17,"MK_Selwyn","ü","Mahinga Kai objectives specific to OTOP Zone"]
[null,18,"MK_OTOP","ü","Rock Art objectives specific to OTOP Zone"]
[null,19,"RA_OTOP","ü","Biodiversity objectives specific to OTOP Zone"]
[null,20,"BD_OTOP","ü","Mahinga Kai objectives specific to Waitaki Zone"]
[null,21,"MK_Wait","ü","Biodiversity objectives specific to Waitaki Zone"]
[null,22,"Sheet1"]
[null,23,"BD_Wait"]

{"sheet":"Title page","index":1,"n_rows":15,"n_cols":4,"rows_kept":15,"cut":false,"hidden":false,"merged":[[10,2,10,4],[5,2,5,4],[6,2,6,4],[7,2,7,4],[8,2,8,4],[9,2,9,4]]}
[]
[]
[]
[null," Farm Environment Plan "]
[]
[null,"Farm name:"]
[]
[null,"FEP date:"]
[]
[null,"Prepared by"]
[]
[]
[null,"This is a new plan"]
[]
[null,"This is a revised plan",null,"Date last revised"]

{"sheet":"Mahinga Kai","index":2,"n_rows":0,"n_cols":0,"rows_kept":0,"cut":false,"hidden":false,"merged":[]}

{"sheet":"Property Details","index":3,"n_rows":29,"n_cols":22,"rows_kept":29,"cut":false,"hidden":false,"merged":[[14,16,17,23],[5,0,5,3],[5,4,5,8],[7,14,7,23],[6,0,6,3],[8,0,8,8],[8,9,8,23],[9,0,9,1],[9,2,9,4],[9,5,9,6],[9,7,9,9],[9,10,9,11],[9,12,9,23],[11,8,11,14],[12,0,12,5],[12,8,13,14],[0,0,0,23],[1,0,1,3],[2,0,2,3],[2,4,2,23],[1,4,1,23],[13,0,13,5],[11,16,13,23],[3,0,3,3],[3,4,3,23],[4,0,4,3],[4,4,4,23],[7,0,7,4],[7,5,7,8],[5,9,5,13],[5,14,5,23],[6,4,6,13],[6,14,6,15],[6,16,6,23],[14,0,14,5],[14,8,15,14],[15,0,15,5],[16,0,16,5],[16,8,17,14],[17,0,17,5],[28,0,28,6],[28,7,28,15],[28,16,28,17],[28,18,28,20],[28,22,28,23],[27,0,27,6],[27,7,27,15],[27,16,27,17],[27,18,27,20],[27,22,27,23],[26,0,26,23],[20,0,20,23],[21,0,21,23],[22,0,22,4],[22,5,22,15],[22,16,22,17],[22,18,22,23],[23,0,23,4],[23,5,23,15],[23,16,23,17],[23,18,23,23],[25,0,25,23]]}
["Property Details"]
["Property name"]
["Physical address"]
["Property Owner/s"]
["Postal Address"]
["Owner contact mobile",null,null,null,null,null,null,null,null,"Owner contact email"]
["Managers name ",null,null,null,null,null,null,null,null,null,null,null,null,null,"Position"]
["Manager's contact mobile",null,null,null,null,null,null,null,null,"Manager's contact email"]
["Person responsible for farm plan implementation"]
["Mobile",null,null,null,null,"Landline",null,null,null,null,"Email"]
[]
["Farm areas  (Area covered by plan) (ha)",null,null,null,null,null,null,null,"Enterprise type/s",null,null,null,null,null,null,null,"Property legal description: "]
["Total area covered by plan (ha)"]
["Effective area (ha)"]
["Irrigated area (ha) ",null,null,null,null,null,null,null,null,null,null,null,null,null,null,null,"Consents held on the proeprty: "]
["Dryland area (ha)"]
["Waste &/or protected areas",null,null,null,null,null,{"$f":"(G13-G14)","v":0}]
["% Effective area irrigated",null,null,null,null,null,{"$f":"IFERROR((G15/G14*100),0)","v":0}]
[]
[]
["Responsibility for Implementing the Farm Plan"]
["As the person responsible for implementing this plan, I confirm that the information provided is correct:"]
["Name (Plan implementer):",null,null,null,null,null,null,null,null,null,null,null,null,null,null,null,"Signature: "]
["Position (e.g. owner/manager):",null,null,null,null,null,null,null,null,null,null,null,null,null,null,null,"Date:"]
[]
["Owner and lessee commitment"]
["As owner/s of this farming business I/we are committed to ensuring that all activities on our property are undertaken in an environmentally sustainable manner. We agree to monitor our performance in meeting the management objectives and targets in this Plan, submit the Plan for external audit as required, and take appropriate actions to address any areas where improvement is needed. "]
["Name (Owner or owner representative)",null,null,null,null,null,null,null,null,null,null,null,null,null,null,null,"Signature: ",null,null,null,null,"Date:"]
["Name (Lessee or lessee representative",null,null,null,null,null,null,null,null,null,null,null,null,null,null,null,"Signature: ",null,null,null,null,"Date:"]

{"sheet":"Sum of Act","index":4,"n_rows":102,"n_cols":18,"rows_kept":102,"cut":false,"hidden":false,"merged":[[41,0,41,10],[41,11,41,13],[42,0,42,10],[42,11,42,13],[43,0,43,10],[50,0,50,10],[50,11,50,13],[43,11,43,13],[46,0,46,10],[46,11,46,13],[47,0,47,10],[47,11,47,13],[48,0,48,10],[48,11,48,13],[49,0,49,10],[49,11,49,13],[45,0,45,13],[58,0,58,10],[58,11,58,13],[59,0,59,10],[59,11,59,13],[56,0,56,13],[51,0,51,10],[51,11,51,13],[52,0,52,10],[52,11,52,13],[53,0,53,10],[53,11,53,13],[54,0,54,10],[54,11,54,13],[55,0,55,10],[55,11,55,13],[57,0,57,10],[57,11,57,13],[60,0,60,10],[60,11,60,13],[62,0,62,10],[62,11,62,13],[63,0,63,10],[63,11,63,13],[66,0,66,10],[66,11,66,13],[71,0,71,10],[71,11,71,13],[69,11,69,13],[61,0,61,13],[65,0,65,10],[65,11,65,13],[67,0,67,13],[69,0,69,10],[64,0,64,10],[64,11,64,13],[2,11,2,13],[0,0,0,10],[0,11,0,13],[3,11,3,13],[4,11,4,13],[5,11,5,13],[6,11,6,13],[7,11,7,13],[2,0,2,10],[3,0,3,10],[4,0,4,10],[5,0,5,10],[6,0,6,10],[7,0,7,10],[1,0,1,13],[8,0,8,10],[36,11,36,13],[38,11,38,13],[24,11,24,13],[27,0,27,10],[27,11,27,13],[29,0,29,10],[29,11,29,13],[44,0,44,10],[44,11,44,13],[14,0,14,10],[14,11,14,13],[17,0,17,10],[17,11,17,13],[15,11,15,13],[16,0,16,10],[16,11,16,13],[20,0,20,10],[20,11,20,13],[31,11,31,13],[18,0,18,10],[18,11,18,13],[19,0,19,10],[19,11,19,13],[25,0,25,10],[25,11,25,13],[26,0,26,10],[26,11,26,13],[39,0,39,10],[39,11,39,13],[40,0,40,10],[35,11,35,13],[21,0,21,10],[21,11,21,13],[22,0,22,10],[22,11,22,13],[23,0,23,10],[23,11,23,13],[24,0,24,10],[36,0,36,10],[37,11,37,13],[32,0,32,13],[40,11,40,13],[11,0,11,10],[11,11,11,13],[8,11,8,13],[9,11,9,13],[10,11,10,13],[68,0,68,10],[68,11,68,13],[30,0,30,10],[30,11,30,13],[31,0,31,10],[9,0,9,10],[10,0,10,10],[12,0,12,13],[13,0,13,10],[13,11,13,13],[28,0,28,13],[15,0,15,10],[37,0,37,10],[38,0,38,10],[33,0,33,10],[33,11,33,13],[34,0,34,10],[34,11,34,13],[35,0,35,10],[91,0,91,13],[92,0,92,10],[92,11,92,13],[93,0,93,10],[93,11,93,13],[94,0,94,10],[94,11,94,13],[70,0,70,10],[70,11,70,13],[72,0,72,10],[72,11,72,13],[73,0,73,13],[74,0,74,10],[74,11,74,13],[75,0,75,10],[75,11,75,13],[76,0,76,10],[76,11,76,13],[77,0,77,10],[77,11,77,13],[78,0,78,10],[78,11,78,13],[79,0,79,13],[80,0,80,10],[100,0,100,10],[100,11,100,13],[101,0,101,10],[101,11,101,13],[95,0,95,10],[95,11,95,13],[96,0,96,13],[97,0,97,10],[97,11,97,13],[98,0,98,10],[98,11,98,13],[99,0,99,10],[99,11,99,13],[80,11,80,13],[81,0,81,10],[81,11,81,13],[82,0,82,10],[82,11,82,13],[83,0,83,10],[83,11,83,13],[84,0,84,10],[84,11,84,13],[90,0,90,10],[90,11,90,13],[89,0,89,10],[85,0,85,13],[86,0,86,10],[86,11,86,13],[87,0,87,10],[87,11,87,13],[88,0,88,10],[88,11,88,13],[89,11,89,13]]}
["Summary of Addtional Actions Proposed",null,null,null,null,null,null,null,null,null,null,"Comments"]
["Irrigation Management ",null,null,null,null,null,null,null,null,null,null,null,null,null,"x","By when","Progress"]
[{"$f":"Irrigation!E67","v":"Ensure that the commissioning tests for the new irrigation system are completed and that any adjustments are made if required."},null,null,null,null,null,null,null,null,null,null,{"$f":"IF(Irrigation!I67=0,\"\",Irrigation!I67)","v":""},null,null,{"$f":"Irrigation!H67","v":0}]
[{"$f":"Irrigation!E68","v":"Prepare and implement an irrigation system regular maintenance schedule "},null,null,null,null,null,null,null,null,null,null,{"$f":"IF(Irrigation!I68=0,\"\",Irrigation!I68)","v":""},null,null,{"$f":"Irrigation!H68","v":0}]
[{"$f":"Irrigation!E69","v":"Establish a system of recording irrigation management incidents. (i.e. what happened, actions taken, &  preventative measures taken."},null,null,null,null,null,null,null,null,null,null,{"$f":"IF(Irrigation!I69=0,\"\",Irrigation!I69)","v":""},null,null,{"$f":"Irrigation!H69","v":0}]
[{"$f":"Irrigation!E70","v":"Undertaken bucket tests on those irrigation systems that have not been tested in the past 3 years.  "},null,null,null,null,null,null,null,null,null,null,{"$f":"IF(Irrigation!I70=0,\"\",Irrigation!I70)","v":""},null,null,{"$f":"Irrigation!H70","v":0}]
[{"$f":"Irrigation!E71","v":"Address irrigation system deficiencies identified through a full system audit or bucket tests."},null,null,null,null,null,null,null,null,null,null,{"$f":"IF(Irrigation!I71=0,\"\",Irrigation!I71)","v":""},null,null,{"$f":"Irrigation!H71","v":0}]
[{"$f":"Irrigation!E72","v":"Upgrade the approach to scheduling irrigation applications to include soil moisture sensors or a soil water budget"},null,null,null,null,null,null,null,null,null,null,{"$f":"IF(Irrigation!I72=0,\"\",Irrigation!I72)","v":""},null,null,{"$f":"Irrigation!H72","v":0}]
[{"$f":"Irrigation!E73","v":"Identify the irrigation high risk areas on the property and develop procedures for managing these areas"},null,null,null,null,null,null,null,null,null,null,{"$f":"IF(Irrigation!I73=0,\"\",Irrigation!I73)","v":""},null,null,{"$f":"Irrigation!H73","v":0}]
[{"$f":"Irrigation!E74","v":"Ensure irrigation management  training is provided for those staff that are actively involved in the operation and maintenance of the system."},null,null,null,null,null,null,null,null,null,null,{"$f":"IF(Irrigation!I74=0,\"\",Irrigation!I74)","v":""},null,null,{"$f":"Irrigation!H74","v":0}]
[{"$f":"Irrigation!E75","v":"Develop an irrigation operation and maintenance manual for the property."},null,null,null,null,null,null,null,null,null,null,{"$f":"IF(Irrigation!I75=0,\"\",Irrigation!I75)","v":""},null,null,{"$f":"Irrigation!H75","v":0}]
[{"$f":"Irrigation!E76","v":0},null,null,null,null,null,null,null,null,null,null,{"$f":"IF(Irrigation!I76=0,\"\",Irrigation!I76)","v":""},null,null,{"$f":"Irrigation!H76","v":0}]
["Nutrient Management ",null,null,null,null,null,null,null,null,"Timeframe",null,null,null,null,"X","By when","Progress"]
[{"$f":"Nutrient!E78","v":"Obtain an updated nutrient budget for the property"},null,null,null,null,null,null,null,null,null,null,{"$f":"IF(Nutrient!I78=0,\"\",Nutrient!I78)","v":""},null,null,{"$f":"Nutrient!H78","v":0}]
[{"$f":"Nutrient!E79","v":"Put in place a plan to reduce N losses from the property to a level at or below the NDA applied to the property."},null,null,null,null,null,null,null,null,null,null,{"$f":"IF(Nutrient!I79=0,\"\",Nutrient!I79)","v":""},null,null,{"$f":"Nutrient!H79","v":0}]
[{"$f":"Nutrient!E80","v":"Map the Critical source areas on the property and develop a plan for the management of these areas."},null,null,null,null,null,null,null,null,null,null,{"$f":"IF(Nutrient!I80=0,\"\",Nutrient!I80)","v":""},null,null,{"$f":"Nutrient!H80","v":0}]
[{"$f":"Nutrient!E81","v":"Lower soil Olsen P levels to around optimum levels for plant growth."},null,null,null,null,null,null,null,null,null,null,{"$f":"IF(Nutrient!I81=0,\"\",Nutrient!I81)","v":""},null,null,{"$f":"Nutrient!H81","v":0}]
[{"$f":"Nutrient!E82","v":"Leave wider buffer margins when cultivating next to waterways to ensure sufficient buffering and filtering of any runoff."},null,null,null,null,null,null,null,null,null,null,{"$f":"IF(Nutrient!I82=0,\"\",Nutrient!I82)","v":""},null,null,{"$f":"Nutrient!H82","v":0}]
[{"$f":"Nutrient!E83","v":"Review and update the current approach to drain cleaning and maintenance to minimise sediment and nutrient inputs into the drainage system"},null,null,null,null,null,null,null,null,null,null,{"$f":"IF(Nutrient!I83=0,\"\",Nutrient!I83)","v":""},null,null,{"$f":"Nutrient!H83","v":0}]
[{"$f":"Nutrient!E84","v":"Where options exist, locate winter forage crops in lower risk paddocks away from waterways."},null,null,null,null,null,null,null,null,null,null,{"$f":"IF(Nutrient!I84=0,\"\",Nutrient!I84)","v":""},null,null,{"$f":"Nutrient!H84","v":0}]
[{"$f":"Nutrient!E85","v":"When planting winter forage crops on sloping land with gullies through it, leave the gullies unplanted to act as filter zones for any run-off."},null,null,null,null,null,null,null,null,null,null,{"$f":"IF(Nutrient!I85=0,\"\",Nutrient!I85)","v":""},null,null,{"$f":"Nutrient!H85","v":0}]
[{"$f":"Nutrient!E86","v":"Adjust nitrogen fertiliser applications to the effluent blocks to take into account N in the effluent."},null,null,null,null,null,null,null,null,null,null,{"$f":"IF(Nutrient!I86=0,\"\",Nutrient!I86)","v":""},null,null,{"$f":"Nutrient!H86","v":0}]
[{"$f":"Nutrient!E87","v":"Ensure that all fertiliser applied on the property by contractors, is applied by a contractor with Spreadmark Accreditation."},null,null,null,null,null,null,null,null,null,null,{"$f":"IF(Nutrient!I87=0,\"\",Nutrient!I87)","v":""},null,null,{"$f":"Nutrient!H87","v":0}]
[{"$f":"Nutrient!E88","v":"Ensure that all farm owned equipment used spreading fertiliser on the property, is correctly calibrated for the product used."},null,null,null,null,null,null,null,null,null,null,{"$f":"IF(Nutrient!I88=0,\"\",Nutrient!I88)","v":""},null,null,{"$f":"Nutrient!H88","v":0}]
[{"$f":"Nutrient!E89","v":"Ensure no nitrogen fertiliser is applied during the high leaching loss risk months of May, June and July unless justified with soil temperature and pasture growth data"},null,null,null,null,null,null,null,null,null,null,{"$f":"IF(Nutrient!I89=0,\"\",Nutrient!I89)","v":""},null,null,{"$f":"Nutrient!H89","v":0}]
[{"$f":"Nutrient!E90","v":"Make all necessary changes to the fertiliser storage facility and loading area to ensure the risk of leaching and loss to waterways is minimised."},null,null,null,null,null,null,null,null,null,null,{"$f":"IF(Nutrient!I90=0,\"\",Nutrient!I90)","v":""},null,null,{"$f":"Nutrient!H90","v":0}]
[{"$f":"Nutrient!E91","v":"Make all necessary changes to the fertiliser loading arrangements to ensure the risk of leaching and loss to waterways is minimised."},null,null,null,null,null,null,null,null,null,null,{"$f":"IF(Nutrient!I91=0,\"\",Nutrient!I91)","v":""},null,null,{"$f":"Nutrient!H91","v":0}]
[{"$f":"Nutrient!E92","v":0},null,null,null,null,null,null,null,null,null,null,{"$f":"IF(Nutrient!I92=0,\"\",Nutrient!I92)","v":""},null,null,{"$f":"Nutrient!H92","v":0},null,null,{"$f":"IF(Nutrient!H92=0,\"\",Nutrient!H92)","v":""}]
["Soils Management Area",null,null,null,null,null,null,null,null,"Timeframe",null,null,null,null,"X","By when","Progress","ü"]
[{"$f":"Soil!E51","v":"Put in place a plan to tackle the erosion issues on the property. "},null,null,null,null,null,null,null,null,null,null,{"$f":"IF(Soil!I51=0,\"\",Soil!I51)","v":""},null,null,{"$f":"Soil!H51","v":0}]
[{"$f":"Soil!E52","v":"Put in place a plan to tackle the soil compaction issues on the property"},null,null,null,null,null,null,null,null,null,null,{"$f":"IF(Soil!I52=0,\"\",Soil!I52)","v":""},null,null,{"$f":"Soil!H52","v":0}]
[{"$f":"Soil!E53","v":0},null,null,null,null,null,null,null,null,null,null,{"$f":"IF(Soil!I53=0,\"\",Soil!I53)","v":""},null,null,{"$f":"Soil!H53","v":0}]
["Collected Animal Effluent Management ",null,null,null,null,null,null,null,null,"Timeframe",null,null,null,null,"X","By when","Progress","ü"]
[{"$f":"CollectedAnimalEffluent!E66","v":"When spreading effluent maintain required buffer margins around waterways, roads, houses, bores and sites of known mahinga kai value."},null,null,null,null,null,null,null,null,null,null,{"$f":"IF(CollectedAnimalEffluent!I60=0,\"\",CollectedAnimalEffluent!I60)","v":""},null,null,{"$f":"CollectedAnimalEffluent!H66","v":0}]
[{"$f":"CollectedAnimalEffluent!E61","v":"Install a backflow preventer as required by consent requirement."},null,null,null,null,null,null,null,null,null,null,{"$f":"IF(CollectedAnimalEffluent!I61=0,\"\",CollectedAnimalEffluent!I61)","v":""},null,null,{"$f":"CollectedAnimalEffluent!H61","v":0}]
[{"$f":"CollectedAnimalEffluent!E59","v":"Identify key effluent management risks and put in place procedures to manage for these risks"},null,null,null,null,null,null,null,null,null,null,{"$f":"IF(CollectedAnimalEffluent!I62=0,\"\",CollectedAnimalEffluent!I62)","v":""},null,null,{"$f":"CollectedAnimalEffluent!H59","v":0}]
[{"$f":"CollectedAnimalEffluent!E60","v":"Increase the amount of effluent storage which is available"},null,null,null,null,null,null,null,null,null,null,{"$f":"IF(CollectedAnimalEffluent!I63=0,\"\",CollectedAnimalEffluent!I63)","v":""},null,null,{"$f":"CollectedAnimalEffluent!H60","v":0}]
[{"$f":"CollectedAnimalEffluent!E61","v":"Install a backflow preventer as required by consent requirement."},null,null,null,null,null,null,null,null,null,null,{"$f":"IF(CollectedAnimalEffluent!I64=0,\"\",CollectedAnimalEffluent!I64)","v":""},null,null,{"$f":"CollectedAnimalEffluent!H61","v":0}]
[{"$f":"CollectedAnimalEffluent!E62","v":"Manage effluent storage so as effluent is only stored when required and the level of the pond kept as low as practical at all times."},null,null,null,null,null,null,null,null,null,null,{"$f":"IF(CollectedAnimalEffluent!I65=0,\"\",CollectedAnimalEffluent!I65)","v":""},null,null,{"$f":"CollectedAnimalEffluent!H62","v":0}]
[{"$f":"CollectedAnimalEffluent!E63","v":"Upgrade effluent solid storage area to ensure solids are stored on an impermeable surface and that there is no runoff to impermeable surfaces."},null,null,null,null,null,null,null,null,null,null,{"$f":"IF(CollectedAnimalEffluent!I66=0,\"\",CollectedAnimalEffluent!I66)","v":""},null,null,{"$f":"CollectedAnimalEffluent!H63","v":0}]
[{"$f":"CollectedAnimalEffluent!E64","v":"Assess options and upgrade the irrigation system used for effluent spreading."},null,null,null,null,null,null,null,null,null,null,{"$f":"IF(CollectedAnimalEffluent!I67=0,\"\",CollectedAnimalEffluent!I67)","v":""},null,null,{"$f":"CollectedAnimalEffluent!H64","v":0}]
[{"$f":"CollectedAnimalEffluent!E65","v":"Make adjustments to the effluent spreader to ensure it is applying the correct amount of effluent"},null,null,null,null,null,null,null,null,null,null,{"$f":"IF(CollectedAnimalEffluent!I68=0,\"\",CollectedAnimalEffluent!I68)","v":""},null,null,{"$f":"CollectedAnimalEffluent!H65","v":0}]
[{"$f":"CollectedAnimalEffluent!E66","v":"When spreading effluent maintain required buffer margins around waterways, roads, houses, bores and sites of known mahinga kai value."},null,null,null,null,null,null,null,null,null,null,{"$f":"IF(CollectedAnimalEffluent!I69=0,\"\",CollectedAnimalEffluent!I69)","v":""},null,null,{"$f":"CollectedAnimalEffluent!H66","v":0}]
[{"$f":"CollectedAnimalEffluent!E67","v":"Provide adequate training on the operation and maintenance of the effluent system for staff with effluent management responsibilities."},null,null,null,null,null,null,null,null,null,null,{"$f":"IF(CollectedAnimalEffluent!I70=0,\"\",CollectedAnimalEffluent!I70)","v":""},null,null,{"$f":"CollectedAnimalEffluent!H67","v":0}]
[{"$f":"CollectedAnimalEffluent!E68","v":0},null,null,null,null,null,null,null,null,null,null,{"$f":"IF(CollectedAnimalEffluent!I71=0,\"\",CollectedAnimalEffluent!I71)","v":""},null,null,{"$f":"CollectedAnimalEffluent!H68","v":0}]
["Waterbody Management (riparian areas, drains, rivers, lakes, wetlands)",null,null,null,null,null,null,null,null,"Timeframe",null,null,null,null,"X","By when","Progress","ü"]
[{"$f":"Waterbody!E39","v":"Exclude stock from all waterways on the property in accordance with regional council rules"},null,null,null,null,null,null,null,null,null,null,{"$f":"IF(Waterbody!I39=0,\"\",Waterbody!I39)","v":""},null,null,{"$f":"Waterbody!H39","v":0}]
[{"$f":"Waterbody!E40","v":"Put in place a programme to ensure that all waterways crossings for cattle are either bridged or culverted"},null,null,null,null,null,null,null,null,null,null,{"$f":"IF(Waterbody!I40=0,\"\",Waterbody!I40)","v":""},null,null,{"$f":"Waterbody!H40","v":0}]
[{"$f":"Waterbody!E41","v":"Put in place a policy that ephemeral waterways will not be grazed when there is surface water flow in these waterways."},null,null,null,null,null,null,null,null,null,null,{"$f":"IF(Waterbody!I41=0,\"\",Waterbody!I41)","v":""},null,null,{"$f":"Waterbody!H41","v":0}]
[{"$f":"Waterbody!E42","v":"Identify any waterways, wetlands, springs, and riparian margins with known mahinga kai values and exclude stock from these areas.. "},null,null,null,null,null,null,null,null,null,null,{"$f":"IF(Waterbody!I42=0,\"\",Waterbody!I42)","v":""},null,null,{"$f":"Waterbody!H42","v":0}]
[{"$f":"Waterbody!E43","v":"Increase the width of riparian margins next to waterways and drains"},null,null,null,null,null,null,null,null,null,null,{"$f":"IF(Waterbody!I43=0,\"\",Waterbody!I43)","v":""},null,null,{"$f":"Waterbody!H43","v":0}]
[{"$f":"Waterbody!E44","v":"Fence out low spots adjacent to waterways to improve the filtering of runoff from adjoining paddocks"},null,null,null,null,null,null,null,null,null,null,{"$f":"IF(Waterbody!I44=0,\"\",Waterbody!I44)","v":""},null,null,{"$f":"Waterbody!H44","v":0}]
[{"$f":"Waterbody!E45","v":"Prepare and implement a riparian planting programme for the property "},null,null,null,null,null,null,null,null,null,null,{"$f":"IF(Waterbody!I45=0,\"\",Waterbody!I45)","v":""},null,null,{"$f":"Waterbody!H45","v":0}]
[{"$f":"Waterbody!E47","v":"Prepare and implement a specific programme for enhancing Mahinga kai habitat and/or sites on the property"},null,null,null,null,null,null,null,null,null,null,{"$f":"IF(Waterbody!I47=0,\"\",Waterbody!I47)","v":""},null,null,{"$f":"Waterbody!H47","v":0}]
[{"$f":"Waterbody!E48","v":"Put in place specific measures to eliminate runoff to waterways from tracks, races, troughs, self feeding areas, stock yards and stock camp wallows"},null,null,null,null,null,null,null,null,null,null,{"$f":"IF(Waterbody!I48=0,\"\",Waterbody!I48)","v":""},null,null,{"$f":"Waterbody!H48","v":0}]
[{"$f":"Waterbody!E49","v":0},null,null,null,null,null,null,null,null,null,null,{"$f":"IF(Waterbody!I49=0,\"\",Waterbody!I49)","v":""},null,null,{"$f":"Waterbody!H49","v":0},null,null,{"$f":"IF(Waterbody!H49=0,\"\",Waterbody!H49)","v":""}]
["Point Sources Management (offal pits, farm rubbish pits, silage pits)",null,null,null,null,null,null,null,null,"Timeframe",null,null,null,null,"X","By when","Progress","ü"]
[{"$f":"PointSource!E23","v":"Relocate offal pit from its current location because of the risk of ground or surface water contamination."},null,null,null,null,null,null,null,null,null,null,{"$f":"IF(PointSource!I23=0,\"\",PointSource!I23)","v":""},null,null,{"$f":"PointSource!H23","v":0}]
[{"$f":"PointSource!E24","v":"Relocate silage pit/stacks from its current location because of the risk of ground or surface water contamination."},null,null,null,null,null,null,null,null,null,null,{"$f":"IF(PointSource!I24=0,\"\",PointSource!I24)","v":""},null,null,{"$f":"PointSource!H24","v":0}]
[{"$f":"PointSource!E25","v":"Relocate rubbish pit from its current location because of the risk of ground or surface water contamination."},null,null,null,null,null,null,null,null,null,null,{"$f":"IF(PointSource!I25=0,\"\",PointSource!I25)","v":""},null,null,{"$f":"PointSource!H25","v":0}]
[{"$f":"PointSource!E26","v":0},null,null,null,null,null,null,null,null,null,null,{"$f":"IF(PointSource!I26=0,\"\",PointSource!I26)","v":""},null,null,{"$f":"A61","v":0},null,null,{"$f":"IF(PointSource!H26=0,\"\",PointSource!H26)","v":""}]
["Water use Management (excl irrigation)",null,null,null,null,null,null,null,null,"Timeframe",null,null,null,null,"X","By when","Progress","ü"]
[{"$f":"WaterUse!E15","v":"Prepare a water use checklist for use on farm"},null,null,null,null,null,null,null,null,null,null,{"$f":"IF(WaterUse!I15=0,\"\",WaterUse!I15)","v":""},null,null,{"$f":"WaterUse!H15","v":0}]
[{"$f":"WaterUse!E16","v":"Ensure all water takes are metered as required under Regional Council rules."},null,null,null,null,null,null,null,null,null,null,{"$f":"IF(WaterUse!I16=0,\"\",WaterUse!I16)","v":""},null,null,{"$f":"WaterUse!H16","v":0}]
[{"$f":"WaterUse!E17","v":"Upgrade dairy shed water use to ensure water is used efficiently"},null,null,null,null,null,null,null,null,null,null,{"$f":"IF(WaterUse!I17=0,\"\",WaterUse!I17)","v":""},null,null,{"$f":"WaterUse!H17","v":0}]
[{"$f":"WaterUse!E18","v":"Upgrade reticulated water system  to ensure water is used efficiently"},null,null,null,null,null,null,null,null,null,null,{"$f":"IF(WaterUse!I18=0,\"\",WaterUse!I18)","v":""},null,null,{"$f":"WaterUse!H18","v":0}]
[{"$f":"WaterUse!E19","v":0},null,null,null,null,null,null,null,null,null,null,{"$f":"IF(WaterUse!I19=0,\"\",WaterUse!I19)","v":""},null,null,{"$f":"WaterUse!H19","v":0},null,null,{"$f":"IF(WaterUse!H19=0,\"\",WaterUse!H19)","v":""}]
["Mahinga Kai Management - Selwyn Waihora",null,null,null,null,null,null,null,null,null,null,null,null,null,"X","By when","Progress","ü"]
[{"$f":"MK_Selwyn!E45","v":"Undertake required actions for other management areas to lift their level of confidence ratings."},null,null,null,null,null,null,null,null,null,null,{"$f":"IF(MK_Selwyn!I45=0,\"\",MK_Selwyn!I45)","v":""},null,null,{"$f":"MK_Selwyn!H45","v":0}]
[{"$f":"MK_Selwyn!E46","v":"Update drain management practices to ensure practices are consistent with the guidelines; \"A guide to managing your drains.\""},null,null,null,null,null,null,null,null,null,null,{"$f":"IF(MK_Selwyn!I46=0,\"\",MK_Selwyn!I46)","v":""},null,null,{"$f":"MK_Selwyn!H46","v":0}]
[{"$f":"MK_Selwyn!E47","v":"Prepare and implement a Mahinga kai enhancement plan for the property."},null,null,null,null,null,null,null,null,null,null,{"$f":"IF(MK_Selwyn!I47=0,\"\",MK_Selwyn!I47)","v":""},null,null,{"$f":"MK_Selwyn!H47","v":0}]
[{"$f":"MK_Selwyn!E48","v":"Ensure compliance with District Council Discharge of Land Drainage Water resource consent"},null,null,null,null,null,null,null,null,null,null,{"$f":"IF(MK_Selwyn!I48=0,\"\",MK_Selwyn!I48)","v":""},null,null,{"$f":"MK_Selwyn!H48","v":0}]
[{"$f":"MK_Selwyn!E49","v":0},null,null,null,null,null,null,null,null,null,null,{"$f":"IF(MK_Selwyn!I49=0,\"\",MK_Selwyn!I49)","v":""},null,null,{"$f":"MK_Selwyn!H49","v":0}]
["Mahinga Kai Management - OTOP",null,null,null,null,null,null,null,null,null,null,null,null,null,"X","By when","Progress","ü"]
[{"$f":"MK_OTOP!E45","v":"Undertake required actions for other management areas to lift their level of confidence ratings."},null,null,null,null,null,null,null,null,null,null,{"$f":"IF(MK_OTOP!I45=0,\"\",MK_OTOP!I45)","v":""},null,null,{"$f":"MK_OTOP!H45","v":0}]
[{"$f":"MK_OTOP!E46","v":"Update drain management practices to ensure practices are consistent with the guidelines; \"A guide to managing your drains.\""},null,null,null,null,null,null,null,null,null,null,{"$f":"IF(MK_OTOP!I46=0,\"\",MK_OTOP!I46)","v":""},null,null,{"$f":"MK_OTOP!H46","v":0}]
[{"$f":"MK_OTOP!E47","v":"Prepare and implement a Mahinga kai enhancement plan for the property."},null,null,null,null,null,null,null,null,null,null,{"$f":"IF(MK_OTOP!I47=0,\"\",MK_OTOP!I47)","v":""},null,null,{"$f":"MK_OTOP!H47","v":0}]
[{"$f":"MK_OTOP!E48","v":0},null,null,null,null,null,null,null,null,null,null,{"$f":"IF(MK_OTOP!I48=0,\"\",MK_OTOP!I48)","v":""},null,null,{"$f":"MK_OTOP!H48","v":0}]
[{"$f":"MK_OTOP!E49","v":0},null,null,null,null,null,null,null,null,null,null,{"$f":"IF(MK_OTOP!I49=0,\"\",MK_OTOP!I49)","v":""},null,null,{"$f":"MK_OTOP!H49","v":0}]
["Rock Art Management - OTOP",null,null,null,null,null,null,null,null,null,null,null,null,null,"X","By when","Progress","ü"]
[{"$f":"RA_OTOP!E22","v":0},null,null,null,null,null,null,null,null,null,null,{"$f":"IF(RA_OTOP!I22=0,\"\",RA_OTOP!I22)","v":""},null,null,{"$f":"RA_OTOP!H22","v":0}]
[{"$f":"RA_OTOP!E23","v":0},null,null,null,null,null,null,null,null,null,null,{"$f":"IF(RA_OTOP!I23=0,\"\",RA_OTOP!I23)","v":""},null,null,{"$f":"RA_OTOP!H23","v":0}]
[{"$f":"RA_OTOP!E24","v":0},null,null,null,null,null,null,null,null,null,null,{"$f":"IF(RA_OTOP!I24=0,\"\",RA_OTOP!I24)","v":""},null,null,{"$f":"RA_OTOP!H24","v":0}]
[{"$f":"RA_OTOP!E25","v":0},null,null,null,null,null,null,null,null,null,null,{"$f":"IF(RA_OTOP!I25=0,\"\",RA_OTOP!I25)","v":""},null,null,{"$f":"RA_OTOP!H25","v":0}]
[{"$f":"RA_OTOP!E26","v":0},null,null,null,null,null,null,null,null,null,null,{"$f":"IF(RA_OTOP!I26=0,\"\",RA_OTOP!I26)","v":""},null,null,{"$f":"RA_OTOP!H26","v":0}]
["Biodiversity Management - OTOP",null,null,null,null,null,null,null,null,null,null,null,null,null,"X","By when","Progress","ü"]
[{"$f":"BD_OTOP!E22","v":0},null,null,null,null,null,null,null,null,null,null,{"$f":"IF(BD_OTOP!I22=0,\"\",BD_OTOP!I22)","v":""},null,null,{"$f":"BD_OTOP!H22","v":0}]
[{"$f":"BD_OTOP!E23","v":0},null,null,null,null,null,null,null,null,null,null,{"$f":"IF(BD_OTOP!I23=0,\"\",BD_OTOP!I23)","v":""},null,null,{"$f":"BD_OTOP!H23","v":0}]
[{"$f":"BD_OTOP!E24","v":0},null,null,null,null,null,null,null,null,null,null,{"$f":"IF(BD_OTOP!I24=0,\"\",BD_OTOP!I24)","v":""},null,null,{"$f":"BD_OTOP!H24","v":0}]
[{"$f":"BD_OTOP!E25","v":0},null,null,null,null,null,null,null,null,null,null,{"$f":"IF(BD_OTOP!I25=0,\"\",BD_OTOP!I25)","v":""},null,null,{"$f":"BD_OTOP!H25","v":0}]
[{"$f":"BD_OTOP!E26","v":0},null,null,null,null,null,null,null,null,null,null,{"$f":"IF(BD_OTOP!I26=0,\"\",BD_OTOP!I26)","v":""},null,null,{"$f":"BD_OTOP!H26","v":0}]
["Mahinga Kai Management - Upper Waitaki",null,null,null,null,null,null,null,null,null,null,null,null,null,"X","By when","Progress"]
[{"$f":"MK_Wait!E38","v":"Complete proposed actions as identifed in other management areas"},null,null,null,null,null,null,null,null,null,null,{"$f":"IF(MK_Wait!I38=0,\"\",MK_Wait!I38)","v":""},null,null,{"$f":"BD_OTOP!H38","v":0}]
[{"$f":"MK_Wait!E39","v":"Protect areas of indigenous vegetation on the property as identified trhough District Plan, Regional Plan and/or resource consent condition."},null,null,null,null,null,null,null,null,null,null,{"$f":"IF(MK_Wait!I39=0,\"\",MK_Wait!I39)","v":""},null,null,{"$f":"MK_Wait!H39","v":0}]
[{"$f":"MK_Wait!E40","v":"Develop and implement an indigenous planting programme for the property."},null,null,null,null,null,null,null,null,null,null,{"$f":"IF(MK_Wait!I40=0,\"\",MK_Wait!I40)","v":""},null,null,{"$f":"MK_Wait!H40","v":0}]
[{"$f":"MK_Wait!E41","v":0},null,null,null,null,null,null,null,null,null,null,{"$f":"IF(MK_Wait!I41=0,\"\",MK_Wait!I41)","v":""},null,null,{"$f":"MK_Wait!H41","v":0}]
["Biodiversity - Upper Waitaki",null,null,null,null,null,null,null,null,null,null,null,null,null,"X","By when","Progress"]
[{"$f":"BD_Wait!E22","v":0},null,null,null,null,null,null,null,null,null,null,{"$f":"IF(BD_Wait!I22=0,\"\",BD_Wait!I22)","v":""},null,null,{"$f":"BD_Wait!H22","v":0}]
[{"$f":"BD_Wait!E23","v":0},null,null,null,null,null,null,null,null,null,null,{"$f":"IF(BD_Wait!I23=0,\"\",BD_Wait!I23)","v":""},null,null,{"$f":"BD_Wait!H23","v":0}]
[{"$f":"BD_Wait!E24","v":0},null,null,null,null,null,null,null,null,null,null,{"$f":"IF(BD_Wait!I24=0,\"\",BD_Wait!I24)","v":""},null,null,{"$f":"BD_Wait!H24","v":0}]
[{"$f":"BD_Wait!E25","v":0},null,null,null,null,null,null,null,null,null,null,{"$f":"IF(BD_Wait!I25=0,\"\",BD_Wait!I25)","v":""},null,null,{"$f":"BD_Wait!H25","v":0}]
[{"$f":"BD_Wait!E26","v":0},null,null,null,null,null,null,null,null,null,null,{"$f":"IF(BD_Wait!I26=0,\"\",BD_Wait!I26)","v":""},null,null,{"$f":"BD_Wait!H26","v":0}]

{"sheet":"Risk Ass","index":5,"n_rows":81,"n_cols":17,"rows_kept":81,"cut":false,"hidden":false,"merged":[[50,10,51,10],[50,11,50,16],[52,0,54,1],[53,2,53,8],[53,9,53,16],[54,2,54,8],[54,9,54,16],[50,0,51,1],[50,2,51,2],[50,3,51,3],[50,4,51,4],[50,5,51,5],[50,6,51,6],[50,7,51,7],[50,8,51,8],[50,9,51,9],[38,11,38,16],[40,0,42,1],[42,2,42,8],[42,9,42,16],[44,0,45,1],[44,2,45,2],[44,3,45,3],[44,4,45,4],[44,5,45,5],[44,6,45,6],[44,7,45,7],[44,8,45,8],[44,9,45,9],[44,10,45,10],[44,11,44,16],[8,10,9,10],[8,11,8,16],[10,0,12,1],[12,2,12,8],[12,9,12,16],[14,3,15,3],[14,4,15,4],[14,5,15,5],[14,6,15,6],[14,7,15,7],[14,8,15,8],[14,9,15,9],[14,10,15,10],[11,2,11,8],[11,9,11,16],[8,0,9,1],[8,2,9,2],[8,3,9,3],[8,4,9,4],[8,5,9,5],[8,6,9,6],[8,7,9,7],[8,8,9,8],[8,9,9,9],[5,2,5,8],[5,9,5,16],[6,2,6,8],[6,9,6,16],[0,0,0,16],[2,0,3,1],[2,2,3,2],[2,11,2,16],[2,7,3,7],[2,8,3,8],[2,9,3,9],[2,10,3,10],[2,5,3,5],[2,6,3,6],[2,3,3,3],[2,4,3,4],[4,0,6,1],[14,11,14,16],[16,0,18,1],[17,2,17,8],[17,9,17,16],[18,2,18,8],[18,9,18,16],[14,0,15,1],[14,2,15,2],[20,3,21,3],[20,11,20,16],[20,9,21,9],[20,10,21,10],[22,0,24,1],[23,2,23,8],[23,9,23,16],[24,2,24,8],[24,9,24,16],[20,0,21,1],[20,2,21,2],[20,4,21,4],[20,5,21,5],[20,6,21,6],[20,7,21,7],[20,8,21,8],[26,11,26,16],[28,0,30,1],[29,2,29,8],[29,9,29,16],[30,2,30,8],[30,9,30,16],[26,0,27,1],[26,2,27,2],[32,11,32,16],[26,3,27,3],[26,4,27,4],[26,5,27,5],[26,6,27,6],[26,7,27,7],[26,8,27,8],[26,9,27,9],[26,10,27,10],[34,0,36,1],[35,2,35,8],[35,9,35,16],[36,2,36,8],[36,9,36,16],[32,0,33,1],[32,2,33,2],[32,3,33,3],[32,4,33,4],[32,5,33,5],[32,6,33,6],[32,7,33,7],[32,8,33,8],[32,9,33,9],[32,10,33,10],[65,0,65,2],[65,3,65,4],[65,5,65,7],[65,10,65,11],[65,12,65,16],[63,0,63,16],[64,0,64,2],[64,3,64,4],[64,5,64,7],[64,10,64,11],[64,12,64,16],[66,0,66,2],[66,3,66,4],[66,5,66,7],[66,10,66,11],[66,12,66,16],[67,0,67,2],[67,3,67,4],[67,5,67,7],[67,10,67,11],[67,12,67,16],[68,0,68,2],[68,3,68,4],[68,5,68,7],[68,10,68,11],[68,12,68,16],[69,0,69,2],[69,3,69,4],[69,5,69,7],[69,10,69,11],[69,12,69,16],[70,0,70,2],[70,3,70,4],[70,5,70,7],[70,10,70,11],[70,12,70,16],[71,0,71,2],[71,3,71,4],[71,5,71,7],[71,10,71,11],[71,12,71,16],[72,0,72,2],[72,3,72,4],[72,5,72,7],[72,10,72,11],[72,12,72,16],[73,0,73,2],[73,3,73,4],[73,5,73,7],[73,10,73,11],[73,12,73,16],[74,0,74,2],[74,3,74,4],[74,5,74,7],[74,10,74,11],[74,12,74,16],[75,0,75,2],[75,3,75,4],[75,5,75,7],[75,10,75,11],[75,12,75,16],[78,5,78,7],[78,10,78,11],[78,12,78,16],[79,0,79,2],[79,3,79,4],[79,5,79,7],[79,10,79,11],[79,12,79,16],[76,0,76,2],[76,3,76,4],[76,5,76,7],[76,10,76,11],[76,12,76,16],[77,0,77,2],[77,3,77,4],[77,5,77,7],[77,10,77,11],[77,12,77,16],[80,0,80,2],[80,3,80,4],[80,5,80,7],[80,10,80,11],[80,12,80,16],[41,2,41,8],[41,9,41,16],[38,0,39,1],[38,2,39,2],[38,3,39,3],[38,4,39,4],[38,5,39,5],[38,6,39,6],[38,7,39,7],[38,8,39,8],[38,9,39,9],[38,10,39,10],[47,2,47,8],[47,9,47,16],[46,0,48,1],[48,2,48,8],[48,9,48,16],[78,0,78,2],[78,3,78,4],[57,10,58,10],[57,11,57,16],[59,0,61,1],[60,2,60,8],[60,9,60,16],[61,2,61,8],[61,9,61,16],[57,0,58,1],[57,2,58,2],[57,3,58,3],[57,4,58,4],[57,5,58,5],[57,6,58,6],[57,7,58,7],[57,8,58,8],[57,9,58,9]]}
["Land Management Units "]
[]
["LMU \nBlock A",null,"Area (ha)","Land use","Irrigation","Winter grazing","Effluent","Waterways present","Drains present","Wetlands present","Springs \npresent","Inherent risk"]
[null,null,null,null,null,null,null,null,null,null,null,"N leach","P leach","Runoff","Erosion","Soil comp","Mahinga Kai"]
[]
[null,null,"Block strengths",null,null,null,null,null,null,"Block weaknesses"]
[]
[]
["LMU \nBlock B",null,"Area (ha)","Land use","Irrigation","Winter grazing","Effluent","Waterways present","Drains present","Wetlands present","Springs \npresent","Inherent risk"]
[null,null,null,null,null,null,null,null,null,null,null,"N leach","P leach","Runoff","Erosion","Soil comp","Mahinga Kai"]
["Insert photo"]
[null,null,"Block strengths",null,null,null,null,null,null,"Block weaknesses"]
[]
[]
["LMU \nBlock C",null,"Area (ha)","Land use","Irrigation","Winter grazing","Effluent","Waterways present","Drains present","Wetlands present","Springs \npresent","Inherent risk"]
[null,null,null,null,null,null,null,null,null,null,null,"N leach","P leach","Runoff","Erosion","Soil comp","Mahinga Kai"]
["Insert photo"]
[null,null,"Block strengths",null,null,null,null,null,null,"Block weaknesses"]
[]
[]
["LMU \nBlock D",null,"Area (ha)","Land use","Irrigation","Winter grazing","Effluent","Waterways present","Drains present","Wetlands present","Springs \npresent","Inherent risk"]
[null,null,null,null,null,null,null,null,null,null,null,"N leach","P leach","Runoff","Erosion","Soil comp","Mahinga Kai"]
["Insert photo"]
[null,null,"Block strengths",null,null,null,null,null,null,"Block weaknesses"]
[]
[]
["LMU \nBlock E",null,"Area (ha)","Land use","Irrigation","Winter grazing","Effluent","Waterways present","Drains present","Wetlands present","Springs \npresent","Inherent risk"]
[null,null,null,null,null,null,null,null,null,null,null,"N leach","P leach","Runoff","Erosion","Soil comp","Mahinga Kai"]
["Insert photo"]
[null,null,"Block strengths",null,null,null,null,null,null,"Block weaknesses"]
[]
[]
["LMU \nBlock F",null,"Area (ha)","Land use","Irrigation","Winter grazing","Effluent","Waterways present","Drains present","Wetlands present","Springs \npresent","Inherent risk"]
[null,null,null,null,null,null,null,null,null,null,null,"N leach","P leach","Runoff","Erosion","Soil comp","Mahinga Kai"]
["Insert photo"]
[null,null,"Block strengths",null,null,null,null,null,null,"Block weaknesses"]
[]
[]
["LMU \nBlock G",null,"Area (ha)","Land use","Irrigation","Winter grazing","Effluent","Waterways present","Drains present","Wetlands present","Springs \npresent","Inherent risk"]
[null,null,null,null,null,null,null,null,null,null,null,"N leach","P leach","Runoff","Erosion","Soil comp","Mahinga Kai"]
["Insert photo"]
[null,null,"Block strengths",null,null,null,null,null,null,"Block weaknesses"]
[]
[]
["LMU \nBlock H",null,"Area (ha)","Land use","Irrigation","Winter grazing","Effluent","Waterways present","Drains present","Wetlands present","Springs \npresent","Inherent risk"]
[null,null,null,null,null,null,null,null,null,null,null,"N leach","P leach","Runoff","Erosion","Soil comp","Mahinga Kai"]
["Insert photo"]
[null,null,"Block strengths",null,null,null,null,null,null,"Block weaknesses"]
[]
[]
["LMU \nBlock I",null,"Area (ha)","Land use","Irrigation","Winter grazing","Effluent","Waterways present","Drains present","Wetlands present","Springs \npresent","Inherent risk"]
[null,null,null,null,null,null,null,null,null,null,null,"N leach","P leach","Runoff","Erosion","Soil comp","Mahinga Kai"]
["Insert photo"]
[null,null,"Block strengths",null,null,null,null,null,null,"Block weaknesses"]
[]
[]
[]
["LMU - OTOP\nBlock J",null,"Area (ha)","Land use","Irrigation","Winter grazing","Effluent","Waterways present","Drains present","Wetlands present","Springs \npresent","Inherent risk"]
[null,null,null,null,null,null,null,null,null,null,null,"N leach","P leach","Runoff","Erosion","Soil comp","Mahinga Kai"]
["Insert photo"]
[null,null,"Block strengths",null,null,null,null,null,null,"Block weaknesses"]
[]
[]
["Risk Assessment"]
["Land use activity",null,null,"LMU's",null,"Potential adverse effects",null,null,"Liklih.","Cons. ","Significance",null,"Risk management measures"]
["Drain cleaning",null,null,"A B D",null,"Risk to mahinga kai",null,null,"Likely","Major",{"$f":"Significance(I66,J66)","v":"High"},null,"See nutrient management section"]
["Irrigation",null,null,"A C, G",null,"Contamination of surface water",null,null,"Unlikely","Moderate",{"$f":"Significance(I67,J67)","v":"Low"},null,"See irrigation management section"]
[null,null,null,null,null,null,null,null,null,null,"undefined"]
[null,null,null,null,null,null,null,null,null,null,"undefined"]
[null,null,null,null,null,null,null,null,null,null,"undefined"]
[null,null,null,null,null,null,null,null,null,null,"undefined"]
[null,null,null,null,null,null,null,null,null,null,"undefined"]
[null,null,null,null,null,null,null,null,null,null,"undefined"]
[null,null,null,null,null,null,null,null,null,null,"undefined"]
[null,null,null,null,null,null,null,null,null,null,"undefined"]
[null,null,null,null,null,null,null,null,null,null,"undefined"]
[null,null,null,null,null,null,null,null,null,null,"undefined"]
[null,null,null,null,null,null,null,null,null,null,"undefined"]
[null,null,null,null,null,null,null,null,null,null,"undefined"]
[null,null,null,null,null,null,null,null,null,null,"undefined"]
[null,null,null,null,null,null,null,null,null,null,"undefined"]

{"sheet":"Maps","index":6,"n_rows":34,"n_cols":5,"rows_kept":34,"cut":false,"hidden":false,"merged":[]}
["Provide maps/s that identify the following: "]
["Paramater","Present Y/N?",null,"Parameter","Present Y/N?"]
["Property boundaries",null,null,"Features"]
["Property boundaries (incl leased blocks)*",null,null,"Conservation or covenanted areas"]
[null,null,null,"Riparian plantings*"]
["Areas",null,null,"Shelterbelts"]
["Soil types*",null,null,"Plantation forestry"]
["Land management units*",null,null,"Significant indigenous veg identified in District Plan*"]
["Irrigated area by irrigation type",null,null,"Erosion control or flood proection assets*"]
["Effluent area",null,null,"Public access routes*"]
["Mahinga kai areas (please include photographs)"]
["Tile or artificial drainage"]
[]
["Point sources"]
["Critcal source areas*"]
["Bores/wells"]
["Effluent ponds"]
["Milking shed"]
["Stock yard facilities"]
["Lanes and tracks"]
["Fertiliser storage"]
["Fuel and chemical storage"]
["Standoff areas, feed pads"]
["Silage pits"]
["Offal and rubbish pits"]
[]
["Water courses"]
["Permanent or intermittant rivers, streams, lakes and ponds - differentiate fenced and unfenced*"]
["Stock crossings*"]
["Open drains*"]
["Water races*"]
["Wetlands*"]
["Springs*",null,null,"* Required"]
["Artifical watercourses (Waimakariri  and OTOP only)*"]

{"sheet":"Irrigation","index":7,"n_rows":75,"n_cols":10,"rows_kept":75,"cut":false,"hidden":false,"merged":[[62,4,62,5],[52,4,52,5],[61,4,61,5],[66,4,66,6],[67,4,67,6],[68,4,68,6],[69,4,69,6],[70,4,70,6],[71,4,71,6],[72,4,72,6],[13,4,13,5],[73,4,73,6],[74,4,74,6],[19,4,19,5],[65,4,65,6],[26,4,26,5],[25,4,25,5],[27,4,27,5],[28,4,28,5],[29,4,29,5],[21,4,21,5],[22,4,22,5],[24,4,24,5],[17,5,17,8],[20,4,20,5],[31,4,31,5],[10,4,10,5],[5,4,5,5],[4,4,4,5],[11,4,11,5],[12,4,12,5],[0,4,0,5],[6,4,6,5],[7,4,7,5],[9,4,9,5],[8,4,8,5],[1,5,1,8],[3,5,3,8],[2,4,2,8],[14,4,14,5],[44,5,44,8],[60,4,60,5],[58,4,58,5],[56,4,56,5],[57,4,57,5],[59,4,59,5],[32,4,32,5],[30,4,30,5],[41,4,41,5],[37,4,37,5],[54,5,54,8],[23,4,23,5],[75,4,75,6],[15,4,15,5],[50,4,50,5],[51,4,51,5],[46,4,46,5],[49,4,49,5],[42,4,42,5],[47,4,47,5],[48,4,48,5],[36,4,36,5],[38,4,38,5],[39,4,39,5],[40,4,40,5],[33,4,33,5],[34,4,34,5],[35,4,35,5]]}
[null,null,null,null," Management Area: Irrigation ",null,null,null,null,"User Guide Notes"]
[null,null,null,null," Objective ","The amount and timing of irrigation is managed to meet plant demands, minimise risk of leaching and runoff and ensure efficient water use."]
[null,null,null,null,"Mahinga kai explanation: Water is essential to life so needs to be treated as taonga (treasure). Irrigation design and operation should ensure the protection and buffering of mahinga kai sites such as around springs, wetlands, water courses, drains, as well as indigenous dryland habitat"]
[null,null,null,null," Target 1 ","New irrigation systems are designed and installed  in accordance with industry codes of practice and standards."]
[]
[null,null,null,null,"Target 1: Current practices",null,"Evidence","Tick","Additional comments"]
[null,null,null,null,"Design",null,null,{"$f":"IF(COUNTA(H8:H11)>0,\"ü\",\"\")","v":""}]
[null,null,null,null,"New irrigation systems (installed in the past 12 months) have been designed with site specific knowledge of the soils, topography and crop requirements"]
[null,null,null,null,"New irrigation system (installed in the past 12 months) has been designed by an accredited company and/or a certified irrigation designer"]
[null,null,null,null,"System has been designed to minimise the risk to sites with identified mahinga kai value (e.g. springs, wetlands, watercourses, drains, species and habitats)."]
[]
[null,null,null,null,"Installation",null,null,{"$f":"IF(COUNTA(H13:H16)>0,\"ü\",\"\")","v":""}]
[null,null,null,null,"Performance checks on the new irrigator/s show that system/s perform to desired specifications for system capacity, application depth and distribution uniformity"]
[null,null,null,null,"A ‘wet’ commissioning test was undertaken post installation. Test included pressure, flow and nozzle checks, alongside a of irrigation depth in relation to the soil water holding capacity. "]
[null,null,null,null,"Adjustments were made to the new system/s where commissioning tests showed the need."]
[]
[]
[null,null,null,null," Target 2","The performance of irrigation systems is assessed annually and irrigation systems are maintained and operated to apply irrigation water at optimal efficiency. "]
[]
[null,null,null,null,"Target 2: Current practices",null,"Evidence","Tick","Additional comments"]
[null,null,null,null,"System performance",null,null,{"$f":"IF(COUNTA(H22:H25)>0,\"ü\",\"\")","v":""}]
[null,null,null,null,"A full system evaluation recently been undertaken"]
[null,null,null,null,"A programme is in place to bucket test all irrigation systems at least every 3 years "]
[null,null,null,null,"Adjustments have been made to irrigation set up to correct issues identified through the bucket tests or full system evaluation."]
[]
[null,null,null,null,"Maintenance",null,null,{"$f":"IF(COUNTA(H27:H30)>0,\"ü\",\"\")","v":""}]
[null,null,null,null,"For each irrigation system, the appropriate annual pre-season checks have been undertaken. "]
[null,null,null,null,"Operational system checks and maintenance are undertaken on irrigators as required during the season."]
[null,null,null,null,"Irrigation management plan prepared which includes a maintenance schedule with tasks and timeframes."]
[]
[null,null,null,null,"Operation",null,null,{"$f":"IF(COUNTA(H32:H37)>0,\"ü\",\"\")","v":""}]
[null,null,null,null,"Irrigation high run-off risk areas are clearly identified and systems are in place to manage the risks"]
[null,null,null,null,"Irrigation applications to non-target areas are minimised. (e.g. tracks)"]
[null,null,null,null,"Soil differences across the property are recognised and the irrigation system is managed taking into account these differences."]
[null,null,null,null,"Run-off and/or ponding from irrigation is monitored and if it occurs action is taken to correct problem."]
[null,null,null,null,"The property has an annual allocation and operates within this annual allocation"]
[]
[null,null,null,null,"Precision application",null,null,{"$f":"IF(COUNTA(H39:H43)>0,\"ü\",\"\")","v":""}]
[null,null,null,null,"GPS or other technology used to aid placement of irrigators"]
[null,null,null,null,"VRI is installed on some irrigators to allow variable application according to soil and/or crop differences."]
[null,null,null,null,"Water is strategically applied according to crop requirements"]
[null,null,null,null,"Timers used to control amount of water applied"]
[]
[]
[null,null,null,null," Target 3","The timing and depth of irrigation water applied takes account of crop requirements & is justified through soil moisture monitoring or soil water budgets & climatic information. "]
[]
[null,null,null,null,"Target 3: Current practices",null,"Evidence","Tick","Additional comments"]
[null,null,null,null,"Soil moisture sensors are used as scheduling aid"]
[null,null,null,null,"Soil water budget/s used as scheduling aid"]
[null,null,null,null,"Knowledge of soil water holding capacity, irrigation depths and trigger points used as scheduling aid"]
[null,null,null,null,"Irrigation scheduling based on crop demand"]
[null,null,null,null,"Weather forecast information used as scheuling aid. "]
[]
[]
[null,null,null,null," Target 4","Staff are trained in the operation, maintenance and use of irrigation systems."]
[]
[null,null,null,null,"Target 4: Current practices",null,"Evidence","Tick","Additional comments"]
[null,null,null,null,"Systems and procedures",null,null,{"$f":"IF(COUNTA(H59)>0,\"ü\",\"\")","v":""}]
[null,null,null,null,"There is an irrigation operation and maintenance manual for the farm.",null,"Operation and maintenance manual"]
[null,null,null,null,"Staff training",null,null,{"$f":"IF(COUNTA(H61:H63)>0,\"ü\",\"\")","v":""}]
[null,null,null,null,"Staff have been trained internally in each irrigation systems operation and maintenance."]
[null,null,null,null,"The irrigation decision maker has attended an Irrigation ‘101’ workshop which covered soil water, plant water use and irrigation scheduling."]
[]
[]
[]
[null,null,null,null,"Additional actions required to achieve irrigation targets and objective",null,null,"Tick","Additional comments"]
[null,null,null,null,"Ensure that the commissioning tests for the new irrigation system are completed and that any adjustments are made if required."]
[null,null,null,null,"Prepare and implement an irrigation system regular maintenance schedule "]
[null,null,null,null,"Establish a system of recording irrigation management incidents. (i.e. what happened, actions taken, &  preventative measures taken."]
[null,null,null,null,"Undertaken bucket tests on those irrigation systems that have not been tested in the past 3 years.  "]
[null,null,null,null,"Address irrigation system deficiencies identified through a full system audit or bucket tests."]
[null,null,null,null,"Upgrade the approach to scheduling irrigation applications to include soil moisture sensors or a soil water budget"]
[null,null,null,null,"Identify the irrigation high risk areas on the property and develop procedures for managing these areas"]
[null,null,null,null,"Ensure irrigation management  training is provided for those staff that are actively involved in the operation and maintenance of the system."]
[null,null,null,null,"Develop an irrigation operation and maintenance manual for the property."]

{"sheet":"Nutrient","index":8,"n_rows":91,"n_cols":10,"rows_kept":91,"cut":false,"hidden":false,"merged":[[3,4,3,8],[50,4,50,5],[51,4,51,5],[63,4,63,5],[53,4,53,5],[54,4,54,5],[55,4,55,5],[58,4,58,5],[56,4,56,5],[61,4,61,5],[57,4,57,5],[62,4,62,5],[60,4,60,5],[59,4,59,5],[46,5,46,6],[40,4,40,5],[88,4,88,6],[89,4,89,6],[90,4,90,6],[84,4,84,6],[80,4,80,6],[85,4,85,6],[86,4,86,6],[87,4,87,6],[81,4,81,6],[82,4,82,6],[83,4,83,6],[76,4,76,6],[78,4,78,6],[79,4,79,6],[71,4,71,5],[72,4,72,5],[64,4,64,5],[66,4,66,5],[67,4,67,6],[74,4,74,6],[70,4,70,5],[65,4,65,5],[68,5,68,6],[2,5,2,8],[4,5,4,8],[5,5,5,8],[7,6,7,7],[91,4,91,6],[77,4,77,6],[20,4,20,5],[10,4,10,5],[11,4,11,5],[12,4,12,5],[52,4,52,5],[73,4,73,5],[48,4,48,5],[49,4,49,5],[26,4,26,5],[31,4,31,5],[0,4,0,5],[29,4,29,5],[30,4,30,5],[32,4,32,5],[38,4,38,5],[34,4,34,5],[35,4,35,5],[13,4,13,5],[24,4,24,5],[14,4,14,5],[22,4,22,5],[21,4,21,5],[25,4,25,5],[19,4,19,5],[18,4,18,5],[1,5,1,8],[16,5,16,8],[44,4,44,5],[43,4,43,5],[27,4,27,5],[23,4,23,5],[39,4,39,5],[28,4,28,5],[36,4,36,5],[41,4,41,5],[42,4,42,5],[37,4,37,5],[33,4,33,5]]}
[null,null,null,null," Management Area: Nutrient ",null,null,null,null,"User Guide Notes"]
[null,null,null,null," Objective 1","To use nutrients efficiently and minimise nutrient losses to water."]
[null,null,null,null," Objective 2","Nutrient losses do not exceed permitted or consented nitrogen limits"]
[null,null,null,null,"Mahinga kai explanation: High exposure to both light and nutrient result in accelerated rates of primary production, habitat alteration, diurnal de-oxygenation and sedimentation, diminishing the habitat value for a mahinga kai species. The subsequent mechanical and chemical channel clearance of waterways with nuisance macrophytes and algaes only further compounds the negative impact on mahinga kai. Nutrients in varying quantities are themselves toxic to aquatic lifeforms and detrimental to mauri. "]
[null,null,null,null," Target 1 ","Nitrogen losses from farming activities are at or below the farms consented nitrogen loss limit"]
[null,null,null,null," Target 1a ","Available nitrogen loss mitigation measures (excl. those associated with irrigation, fertiliser or effluent) are implemented."]
[null,null,null,null,null,null,null,{"$f":"Nutrient!H20=IF(COUNTA(H8:H12)>0,\"ü\",\"\")","v":false}]
[null,null,null,null,"N Loss Limit",25,"Overseer version",null,6.3]
[null,null,null,null,"Current N loss",23,"Overseer version",null,6.3]
[]
[null,null,null,null,"Targets 1 & 1a: Current practices",null," Evidence","Tick","Additional comments"]
[null,null,null,null,"The current nutrient budget N loss number is at or below the required N loss limit for the property"]
[null,null,null,null,"The current N loss rate is above the required N loss limit for the property but considered to be farming at GMP loss rate because of other factors not considered in Overseer calculation"]
[null,null,null,null,"Additional nitrogen loss mitigation measures (excl those associated with irrigation, fertiliser or effluent) have been implemented which will help lower N losses. "]
[]
[null,null,null,null,null,null,null,"Keep"]
[null,null,null,null," Target 2","Phosphorus and sediment losses from farming activities are minimised."]
[]
[null,null,null,null,"Target 2: Current practices",null," Evidence","Tick","Additional comments"]
[null,null,null,null,"P and sediment loss risks",null,null,{"$f":"IF(COUNTA(H21:H23)>0,\"ü\",\"\")","v":""}]
[null,null,null,null,"High risk phosphorus and sediment loss farming practices have been identified.  Measures in place to mitigate risks."]
[null,null,null,null,"Critical source areas have been clearly identified and the nutrient and sediment losses from these area are appropriately managed"]
[]
[null,null,null,null,"P fertiliser applications",null,null,{"$f":"IF(COUNTA(H25:H27)>0,\"ü\",\"\")","v":""}]
[null,null,null,null,"Soil nutrient status, specifically Olsen P, is maintained at or around the agronomic optimum levels"]
[null,null,null,null,"Slow release phosphorus fertilisers are used where risk of Phosphorus loss from conventional P fertilisers are high."]
[]
[null,null,null,null,"Cultivation",null,null,{"$f":"IF(COUNTA(H29:H32)>0,\"ü\",\"\")","v":""}]
[null,null,null,null,"Minimum or no till cultivation techniques are used when high risk of run-off or flooding of cultivated paddocks."]
[null,null,null,null,"Minimum or no till cultivation techniques are used when high risk of wind or water erosion."]
[null,null,null,null,"Vegetated riparian margins of sufficient width are left to adequately filter any runoff from cultivated paddocks."]
[]
[null,null,null,null,"Drain management",null,null,{"$f":"IF(COUNTA(H34:H37)>0,\"ü\",\"\")","v":""}]
[null,null,null,null,"Drains are maintained with good shape and vegetation"]
[null,null,null,null,"Measures in place to minimise the need for drain cleaning."]
[null,null,null,null,"Drain margins are planted to shade drain and reduce weed growth. "]
[]
[null,null,null,null,"Winter forage grazing ",null,null,{"$f":"IF(COUNTA(H39:H45)>0,\"ü\",\"\")","v":""}]
[null,null,null,null,"Winter grazing blocks are located in low risk areas for phosphorus and sediment loss - pre planning undertaken"]
[null,null,null,null,"Winter forage crops are located in areas of low risk from flooding, soil loss and land damage"]
[null,null,null,null,"A  grazing plan has been prepared and is being used as a guide for grazing particularly during wet winters and grazing high risk areas. "]
[null,null,null,null,"Strip next to riparian margins is grazed last when break feeding winter feed crops"]
[null,null,null,null,"Vegetated buffer strip of sufficient width are in place to filter any runoff from grazed fodder crop blocks. "]
[null,null,null,null,"Vegetated buffer strip of sufficient width is left in the centre of gullies on hill blocks to filter any runoff. Strip next to the gully is grazed last."]
[]
[null,null,null,null,null,null,null,"Keep"]
[null,null,null,null," Target 3","Manage the amount, timing and application of fertiliser inputs to match the predicted plant requirements and minimise nutrient losses."]
[]
[null,null,null,null,"Target 3: Current practices",null," Evidence","Tick","Additional comments"]
[null,null,null,null,"Fertiliser rates",null,null,{"$f":"IF(COUNTA(H51:H57)>0,\"ü\",\"\")","v":""}]
[null,null,null,null,"Plant analysis is used as an aid to determining crop requirements and fertiliser needs."]
[null,null,null,null,"Regular soil tests undertaken as aid to determining fertiliser needs"]
[null,null,null,null,"Fertilizer application rates based on advisor's recommendations"]
[null,null,null,null,"Industry approved tools (e.g. crop calculator) used to determine fertilizer rates "]
[null,null,null,null,"Deep soil nitrogen testing is used as basis of determining nitrogen applications to crops"]
[null,null,null,null,"Nitrogen applications to dairy effluent blocks take into account the nitrogen content in effluent"]
[]
[null,null,null,null,"Fertiliser spreading & placement",null,null,{"$f":"IF(COUNTA(H59:H62)>0,\"ü\",\"\")","v":""}]
[null,null,null,null,"Contractors used for fertiliser spreading are 'Spreadmark' certified"]
[null,null,null,null,"Equipment  used for spreading fertiliser is calibrated according to design specifications appropriate for the product used."]
[null,null,null,null,"GPS technologies are used for the placement of fertiliser"]
[]
[null,null,null,null,"Fertiliser timing",null,null,{"$f":"IF(COUNTA(H64:H67)>0,\"ü\",\"\")","v":""}]
[null,null,null,null,"No phosphorus fertiliser is applied in high risk months of May to September"]
[null,null,null,null,"No nitrogen fertiliser is applied in the high risk months of May, June and July."]
[null,null,null,null,"Fertiliser is not applied when soils are at field capacity and/or soil temperatures are below 6 degrees"]
[]
[]
[null,null,null,null," Target 4","Store and load fertiliser to minimise the risk of spillage, leaching and loss into waterbodies"]
[]
[null,null,null,null,"Target 4: Current practices",null," Evidence","Tick","Additional comments"]
[null,null,null,null,"Fertiliser storage sites are designed and managed to avoid nutrient leaching loss to any water body."]
[null,null,null,null,"Fertiliser is loaded in a way that minimises the risk of spillage resulting in leaching and losses to waterbodies."]
[]
[]
[]
[null,null,null,null,"Additional actions required to meet nutrient management targets and objective",null,null,"Tick","Additional comments"]
[null,null,null,null,"Obtain an updated nutrient budget for the property"]
[null,null,null,null,"Put in place a plan to reduce N losses from the property to a level at or below the NDA applied to the property."]
[null,null,null,null,"Map the Critical source areas on the property and develop a plan for the management of these areas."]
[null,null,null,null,"Lower soil Olsen P levels to around optimum levels for plant growth."]
[null,null,null,null,"Leave wider buffer margins when cultivating next to waterways to ensure sufficient buffering and filtering of any runoff."]
[null,null,null,null,"Review and update the current approach to drain cleaning and maintenance to minimise sediment and nutrient inputs into the drainage system"]
[null,null,null,null,"Where options exist, locate winter forage crops in lower risk paddocks away from waterways."]
[null,null,null,null,"When planting winter forage crops on sloping land with gullies through it, leave the gullies unplanted to act as filter zones for any run-off."]
[null,null,null,null,"Adjust nitrogen fertiliser applications to the effluent blocks to take into account N in the effluent."]
[null,null,null,null,"Ensure that all fertiliser applied on the property by contractors, is applied by a contractor with Spreadmark Accreditation."]
[null,null,null,null,"Ensure that all farm owned equipment used spreading fertiliser on the property, is correctly calibrated for the product used."]
[null,null,null,null,"Ensure no nitrogen fertiliser is applied during the high leaching loss risk months of May, June and July unless justified with soil temperature and pasture growth data"]
[null,null,null,null,"Make all necessary changes to the fertiliser storage facility and loading area to ensure the risk of leaching and loss to waterways is minimised."]
[null,null,null,null,"Make all necessary changes to the fertiliser loading arrangements to ensure the risk of leaching and loss to waterways is minimised."]

{"sheet":"Soil","index":9,"n_rows":52,"n_cols":10,"rows_kept":52,"cut":false,"hidden":false,"merged":[[46,4,46,5],[35,4,35,5],[44,4,44,5],[37,4,37,5],[40,4,40,5],[45,4,45,5],[39,4,39,5],[38,4,38,5],[43,4,43,5],[42,4,42,5],[53,4,53,6],[49,4,49,6],[50,4,50,6],[51,4,51,6],[52,4,52,6],[2,4,2,8],[15,4,15,5],[28,4,28,5],[31,4,31,5],[32,5,32,8],[0,4,0,5],[0,6,0,7],[30,4,30,5],[41,4,41,5],[36,4,36,5],[21,4,21,5],[22,4,22,5],[16,4,16,5],[20,4,20,5],[26,4,26,5],[23,4,23,5],[27,4,27,5],[11,4,11,5],[34,4,34,5],[1,5,1,8],[29,4,29,5],[47,4,47,5],[19,4,19,5],[25,4,25,5],[3,5,3,8],[13,4,13,5],[18,4,18,5],[6,4,6,5],[7,4,7,5],[8,4,8,5],[14,4,14,5],[9,4,9,5],[5,4,5,5],[17,4,17,5],[10,4,10,5],[12,4,12,5],[24,4,24,5]]}
[null,null,null,null," Management Area: Cultivation and soil structure",null,null,null,null,"User Guide Notes"]
[null,null,null,null," Objective ","The  physical and biological condition of soils is maintained or improved in order to minimise the movement of sediment, phosphorus and other contaminants to waterways."]
[null,null,null,null,"Mahinga kai explanation: Cultivation and soil management is such that it protects the critical life sustaining ability of the whenua for future generations. Explanation: Soil compaction, pugging, exposure to wind erosion during tillage, are all activities which diminish the mauri of the whenua. Activities which enhance the micro and macro -biota of the soil are to be encouraged. "]
[null,null,null,null," Target 1 ","Farming activities are managed so as to not exacerbate erosion."]
[null,null,null,null,null,null,null,null,null,"'=IF(COUNTA(H8:H11)>0,\"ü\",\"\")"]
[null,null,null,null,"Target 1: Current practice",null," Evidence","Tick","Additional comments"]
[null,null,null,null,"Erosion resulting from management of the irrigation system",null,null,{"$f":"IF(COUNTA(H8:H10)>0,\"ü\",\"\")","v":""}]
[null,null,null,null,"Irrigation system is managed in such a way as to minimise the risk of erosion occurring as a result of the operation of the system."]
[null,null,null,null,"Immediate remedial action is taken to manage erosion caused through the application of irrigation water "]
[]
[null,null,null,null,"Erosion resulting from cultivation practices",null,null,{"$f":"IF(COUNTA(H12:H15)>0,\"ü\",\"\")","v":""}]
[null,null,null,null,"Appropriate measures are taken to minimise wind erosion risk when paddocks are cultivated "]
[null,null,null,null,"Direct drilling and/or minimum tillage is used where there is a high risk of erosion or sediment run-off"]
[null,null,null,null,"Cultivation is undertaken along the contour on sloping ground to reduce the erosion risk"]
[]
[null,null,null,null,"Hill country erosion",null,null,{"$f":"IF(COUNTA(H17:H20)>0,\"ü\",\"\")","v":""}]
[null,null,null,null,"Strategic tree planting is retained or undertaken to protect key infrastructure from erosion (fences, tracks, buildings, public roads)"]
[null,null,null,null,"Eroding hill country areas on the property are identified and appropriately managed."]
[null,null,null,null,"Farm tracks on hill country are designed in such a way that minimises the risk of erosion and soil loss (specify)"]
[]
[null,null,null,null,"Streambank and gully erosion",null,null,{"$f":"IF(COUNTA(H22:H26)>0,\"ü\",\"\")","v":""}]
[null,null,null,null,"Eroding gullies are protected and planted with suitable tree species"]
[null,null,null,null,"Containment structures such as debris dams are used to help stabilise eroding gullies"]
[null,null,null,null,"Eroding streambanks on the property are identified and appropriately managed."]
[null,null,null,null,"Eroding areas with identified mahinga kai values are protected"]
[]
[null,null,null,null,"Erosion due to grazing practices",null,null,{"$f":"IF(COUNTA(H28:H31)>0,\"ü\",\"\")","v":""}]
[null,null,null,null,"Effective measures are in place to reduce deer pacing erosion on fence lines (specify)"]
[null,null,null,null,"Fence lines/corners planted to reduce deer pacing behaviour and erosion"]
[null,null,null,null,"Shingle spread around troughs, on high use tracks and in gate ways to minimise loss of soil and run off"]
[]
[]
[null,null,null,null," Target 2","Farming practices are implemented that optimise infiltration of water into the soil profile and minimise run-off of water, sediment loss and erosion."]
[]
[null,null,null,null,"Target 2: Current practices",null," Evidence","Tick","Additional comments"]
[null,null,null,null,"Soil compaction",null,null,{"$f":"IF(COUNTA(H37:H43)>0,\"ü\",\"\")","v":""}]
[null,null,null,null,"Differences in soil susceptibility to compaction damage are recognised and farming practices are managed to minimise damage "]
[null,null,null,null,"A wet weather grazing management plan in place to minimise soil damage. (ie. A plan 'B' if it gets wet)"]
[null,null,null,null,"The risk of soil compaction from the grazing by cattle of winter forage crops is recognised. Appropriate management measures have been put in place to minimise the risk (specify)"]
[null,null,null,null,"Passage of heavy machinery over high compaction risk soils is limited or avoided to minimise compaction risk"]
[null,null,null,null,"Cattle are not grazed in low lying and other high-risk areas where soils can be easily compacted, pugged or eroded during storm events or in the wet season. "]
[null,null,null,null,"Feed pads in place to minimise soil compaction"]
[]
[null,null,null,null,"Soil structure",null,null,{"$f":"IF(COUNTA(H45:H47)>0,\"ü\",\"\")","v":""}]
[null,null,null,null,"Stubble is incorporated into the soil, rather than burning, to help improve soil structure"]
[null,null,null,null,"Cropping rotations are managed in such a way to help maintain and/or improve soil structure"]
[null,null,null,null,"Appropriate cultivation practices for the soil type and crop are used to maintain and/or enhance soil structure "]
[]
[]
[null,null,null,null,"Additional actions proposed to meet soils management objective and targets",null,null,"Tick","Additional comments"]
[null,null,null,null,"Put in place a plan to tackle the erosion issues on the property. "]
[null,null,null,null,"Put in place a plan to tackle the soil compaction issues on the property"]

{"sheet":"CollectedAnimalEffluent","index":10,"n_rows":67,"n_cols":10,"rows_kept":67,"cut":false,"hidden":false,"merged":[[50,5,50,8],[37,4,37,5],[25,4,25,5],[36,4,36,5],[38,4,38,5],[48,4,48,5],[45,4,45,5],[41,4,41,5],[43,4,43,5],[39,5,39,8],[46,4,46,5],[47,4,47,5],[44,4,44,5],[24,4,24,5],[22,4,22,5],[35,4,35,5],[28,4,28,5],[27,4,27,5],[31,4,31,5],[33,4,33,5],[34,4,34,5],[32,4,32,5],[67,4,67,6],[52,4,52,5],[54,4,54,5],[58,4,58,6],[64,4,64,6],[65,4,65,6],[60,4,60,6],[53,4,53,5],[57,4,57,6],[61,4,61,6],[66,4,66,6],[59,4,59,6],[63,4,63,6],[7,4,7,5],[16,4,16,5],[0,4,0,5],[8,4,8,5],[1,5,1,8],[3,5,3,8],[5,4,5,5],[6,4,6,5],[0,6,0,7],[15,4,15,5],[2,4,2,8],[18,4,18,5],[19,4,19,5],[9,4,9,5],[62,4,62,6],[12,4,12,5],[13,5,13,8],[11,4,11,5],[20,4,20,5],[26,4,26,5],[29,4,29,5],[17,4,17,5],[21,4,21,5],[23,4,23,5],[10,4,10,5],[42,4,42,5],[30,4,30,5]]}
[null,null,null,null," Management Area: \nAnimal Effluent & Solid Waste",null,null,null,null,"User Guide Notes"]
[null,null,null,null," Objective ","Animal effluent and solid animal waste is managed to minimise nutrient leaching and run-off"]
[null,null,null,null,"Mahinga kai explanation: Animal effluent is incompatible to the use value of mahinga kai. The smell of animal effluent severely reduces the food value of mahinga kai. Diseases from effluent are microbial, amoebic, viral and parasitic, and can be transferred via direct contact or through host food chains. "]
[null,null,null,null," Target 1 ","Effluent systems meet industry Codes of Practice or an equivalent standard."]
[]
[null,null,null,null,"Current practices",null,"Evidence","Tick","Additional comments"]
[null,null,null,null,"All farm dairy effluent storage facilities installed on the property are designed in accordance with the Effluent Design Code of Practice"]
[null,null,null,null,"No effluent is spread, over drains or water races, within 50m of bore, within 20m of public road, within 150m of residential dwelling"]
[null,null,null,null,"No effluent is applied within 20 metres of a rivers, streams, or drains."]
[null,null,null,null,"Backflow preventers installed on irrigation systems used for effluent irrigation."]
[null,null,null,null,"All effluent from dairy sheds, yards, and feed pads is collected for land application"]
[]
[]
[null,null,null,null," Target 2","The timing and rate of application of effluent and solid animal waste to land is managed so as to minimise the risk of contamination of groundwater or surface water bodies."]
[]
[null,null,null,null,"Current practices",null," Evidence","Tick","Additional comments"]
[null,null,null,null,"Risk identification and emergency management",null,null,{"$f":"IF(COUNTA(H18:H21)>0,\"ü\",\"\")","v":""}]
[null,null,null,null,"Key effluent management risks have been identified and appropriate management measures are in place for the management of identified risks"]
[null,null,null,null,"Immediate action taken when incidents occur. Includes rectifying problem, cleaning up and putting in place actions to reduce risk of recurrence."]
[null,null,null,null,"Emergency management – major risks identified & emergency procedures in place"]
[]
[null,null,null,null,"Effluent irrigation system ",null,null,{"$f":"IF(COUNTA(H23:H26)>0,\"ü\",\"\")","v":""}]
[null,null,null,null,"Effluent system is capable of delivering the correct amount of effluent for soil type and slope"]
[null,null,null,null,"Application equipment is tested annually to ensure that it is applying effluent uniformly at a depth appropriate to the design specifications"]
[null,null,null,null,"Effluent is applied at depths/rates that do not lead to ponding or runoff"]
[null,null,null,null,"Effluent is not applied when soils are saturated or near field capacity"]
[]
[null,null,null,null,"Effluent spreading",null,null,{"$f":"IF(COUNTA(H29:H32)>0,\"ü\",\"\")","v":""}]
[null,null,null,null,"Effluent is spread over the whole of the available area"]
[null,null,null,null,"Effluent application area of at least 8ha/100 cows is available for spreading"]
[null,null,null,null,"Appropriate buffers are in place between effluent discharge activities and streams, rivers, drains, springs, and wetlands."]
[]
[null,null,null,null,"Effluent and fertiliser applications",null,null,{"$f":"IF(COUNTA(H34:H35)>0,\"ü\",\"\")","v":""}]
[null,null,null,null,"Fertiliser requirements for the effluent block/s are calculated taking into consideration the timing and amount of effluent applied."]
[]
[null,null,null,null,"Effluent application and technology",null,null,{"$f":"IF(COUNTA(H37:H39)>0,\"ü\",\"\")","v":""}]
[null,null,null,null,"GPS technology is used to assist with the placement of effluent spreading"]
[null,null,null,null,"Appropriate fail safe device installed on effluent irrigator"]
[]
[null,null,null,null," Target 3","Sufficient and suitable storage is available to enable animal effluent and washdown water to be stored when soil conditions are unsuitable for application."]
[]
[null,null,null,null,"Current practices",null,"Evidence","Tick","Additional comments"]
[null,null,null,null,"Effluent storage is the greater of the regulatory requirement or the calculated storage using the Dairy Effluent Storage Calculator"]
[null,null,null,null,"Effluent storage facilities are constructed from materials that prevent effluent contaminating surface or ground water"]
[null,null,null,null,"Sufficient storage capacity is available to ensure that effluent does not need to be applied when soil conditions are near field capacity. "]
[null,null,null,null,"Effluent storage is managed to ensure effluent is only stored when required and level kept as low as practical, maximising storage availability"]
[null,null,null,null,"Effluent solids are stored on an impermeable surface "]
[null,null,null,null,"Ponds are managed in such a way to ensure solids are not accumulating and becoming anaerobic in the pond"]
[]
[null,null,null,null,null,null,null,"ü"]
[null,null,null,null," Target 4","Staff are trained in the operation, maintenance and use of effluent storage and application systems."]
[]
[null,null,null,null,"Current practices",null,"Evidence","Tick","Additional comments"]
[null,null,null,null,"Staff are trained to ensure they understand the management of the system and appropriate decision making process for when and where to apply effluent."]
[]
[null,null,null,null,null,null,null,"ü"]
[]
[null,null,null,null,"Additional actions proposed to meet effluent management objective and targets",null,null,"Tick","Additional comments"]
[null,null,null,null,"Identify key effluent management risks and put in place procedures to manage for these risks"]
[null,null,null,null,"Increase the amount of effluent storage which is available"]
[null,null,null,null,"Install a backflow preventer as required by consent requirement."]
[null,null,null,null,"Manage effluent storage so as effluent is only stored when required and the level of the pond kept as low as practical at all times."]
[null,null,null,null,"Upgrade effluent solid storage area to ensure solids are stored on an impermeable surface and that there is no runoff to impermeable surfaces."]
[null,null,null,null,"Assess options and upgrade the irrigation system used for effluent spreading."]
[null,null,null,null,"Make adjustments to the effluent spreader to ensure it is applying the correct amount of effluent"]
[null,null,null,null,"When spreading effluent maintain required buffer margins around waterways, roads, houses, bores and sites of known mahinga kai value."]
[null,null,null,null,"Provide adequate training on the operation and maintenance of the effluent system for staff with effluent management responsibilities."]

{"sheet":"Waterbody","index":11,"n_rows":48,"n_cols":10,"rows_kept":48,"cut":false,"hidden":false,"merged":[[2,4,2,8],[42,4,42,6],[43,4,43,6],[0,4,0,7],[5,4,5,5],[6,4,6,5],[7,4,7,5],[11,4,11,6],[8,4,8,5],[10,4,10,5],[25,4,25,5],[18,4,18,5],[17,4,17,5],[1,5,1,8],[3,5,3,8],[41,4,41,6],[48,4,48,6],[32,4,32,5],[33,4,33,5],[38,4,38,6],[23,4,23,5],[27,4,27,5],[28,4,28,5],[34,4,34,5],[44,4,44,6],[29,4,29,6],[35,4,35,6],[46,4,46,6],[47,4,47,6],[39,4,39,6],[40,4,40,6],[45,4,45,6],[37,4,37,6],[30,5,30,8],[26,4,26,5],[9,4,9,5],[14,4,14,5],[15,4,15,5],[16,4,16,5],[20,4,20,6],[24,4,24,5],[19,4,19,5],[12,5,12,8],[21,5,21,8]]}
[null,null,null,null," Management Area: Waterbody \n- riparian drains, rivers, wetlands, lakes and springs ",null,null,null,null,"User Guide Notes"]
[null,null,null,null," Objective ","Wetlands, riparian areas and the margins of surface waterbodies are managed to avoid damage to the bed and margins of the water body, and to avoid the direct input of nutrients, sediment, and microbial pathogens."]
[null,null,null,null,"Mahinga kai explanation: Most of our waterbody types have been lost or are seriously compromised habitats due to lack of perceived value over the last 150 years. Management objectives must achieve incremental gains in restoring the representative range of waterbody types. It is only through the provision of healthy intact habitats across the range of waterbody types available to our tupuna, that we will increase abundance and variety in mahinga kai.  "]
[null,null,null,null," Target 1 ","Stock is excluded from waterbodies in accordance with regional council rules or any granted resource consent."]
[]
[null,null,null,null,"Current practices",null,"Evidence","Tick","Additional comments"]
[null,null,null,null,"Stock are excluded from all waterways and wetlands as per Regional Council requirements"]
[null,null,null,null,"All waterways crossings for cattle or deer are either bridged or culverted"]
[null,null,null,null,"Ephemeral waterways are not grazed when there is surface water flow."]
[null,null,null,null,"Stock are excluded from waterways, wetlands, springs, and riparian margins with known mahinga kai values. "]
[]
[]
[null,null,null,null," Target 2","Vegetated riparian margins of sufficient width are maintained to minimise nutrient, sediment and microbial pathogen losses to waterbodies."]
[]
[null,null,null,null,"Current practices",null,"Evidence","Tick","Additional comments"]
[null,null,null,null,"Short to medium term riparian planting programme prepared for the property and plan in process of being implemented"]
[null,null,null,null,"Low points next to waterways are identified and wider riparian margins are left in these areas to better filter runoff. "]
[null,null,null,null,"Enhancement programme in place for areas on the property which are identified as significant wetlands"]
[null,null,null,null,"Appropriately riparian margins are left along waterways to capture run off from land, stabilise banks, control the growth of aquatic weeds, and increase habitat value"]
[]
[]
[null,null,null,null," Targets 3","Farm tracks, gateways, water troughs, self-feeding areas, stock camps wallows and other farming activities that are potential sources of sediment, nutrient and microbial loss are located so as to minimise the risks to surface water quality."]
[]
[null,null,null,null,"Current practices",null,"Evidence","Tick","Additional comments"]
[null,null,null,null,"Runoff from stock tracks and races is directed away from waterways or filtered trough riparian buffers"]
[null,null,null,null,"Runoff from gateways, water troughs, stock feeding areas and stock yards is directed away from waterways or filtered through riparian buffers"]
[null,null,null,null,"Runoff from stock camp wallows  is directed away from waterways or filtered through riparian buffers"]
[null,null,null,null,"Deer are provided with separate out of creek wallow areas"]
[]
[]
[null,null,null,null," Targets 4","Mahinga kai values are protected as a result of measures taken to protect and enhance water quality and stream health"]
[]
[null,null,null,null,"Current practices",null,"Evidence","Tick","Additional comments"]
[null,null,null,null,"Mahinga kai value sites on the property have been identified and measures have been taken to protect and enhance these sites."]
[]
[]
[]
[null,null,null,null,"Additional actions proposed to meet waterbody management objective and targets",null,null,"Tick","Additional comments"]
[null,null,null,null,"Exclude stock from all waterways on the property in accordance with regional council rules"]
[null,null,null,null,"Put in place a programme to ensure that all waterways crossings for cattle are either bridged or culverted"]
[null,null,null,null,"Put in place a policy that ephemeral waterways will not be grazed when there is surface water flow in these waterways."]
[null,null,null,null,"Identify any waterways, wetlands, springs, and riparian margins with known mahinga kai values and exclude stock from these areas.. "]
[null,null,null,null,"Increase the width of riparian margins next to waterways and drains"]
[null,null,null,null,"Fence out low spots adjacent to waterways to improve the filtering of runoff from adjoining paddocks"]
[null,null,null,null,"Prepare and implement a riparian planting programme for the property "]
[null,null,null,null,"Prepare and implement a wetland management programme for specific wetlands on the property "]
[null,null,null,null,"Prepare and implement a specific programme for enhancing Mahinga kai habitat and/or sites on the property"]
[null,null,null,null,"Put in place specific measures to eliminate runoff to waterways from tracks, races, troughs, self feeding areas, stock yards and stock camp wallows"]

{"sheet":"PointSource","index":12,"n_rows":25,"n_cols":11,"rows_kept":25,"cut":false,"hidden":false,"merged":[[13,4,13,5],[24,4,24,6],[25,4,25,6],[15,4,15,5],[22,4,22,6],[23,4,23,6],[21,4,21,6],[14,4,14,5],[18,4,18,5],[17,4,17,5],[16,4,16,5],[0,4,0,7],[5,4,5,5],[12,4,12,5],[11,4,11,5],[10,4,10,5],[1,5,1,8],[3,5,3,8],[6,4,6,5],[7,4,7,5],[8,4,8,5],[9,4,9,5],[2,4,2,8]]}
[null,null,null,null,"Management area: Point Source - offal pits, farm rubbish, silage pits etc.",null,null,null,null,"User Guide Notes"]
[null,null,null,null," Objective ","The number and location of pits are managed to minimise risks to health and water quality."]
[null,null,null,null,"Mahinga kai explanation: Point source discharges concentrate pollutants on farms resulting from lapses or poor management.  Point source discharges release highly concentrated pollutants and make receiving environments paru. Paru environments are toxic to mahinga kai and are incompatible to the use value."]
[null,null,null,null," Target 1 "," All on-farm silage, offal pit and rubbish dump discharges are managed to avoid direct discharges of contaminants to groundwater or surface water."]
[]
[null,null,null,null,"Current practices",null,"Evidence","Tick","Additional Comments",null,"=IF(COUNTA(H8:H11)>0,\"ü\",\"\")"]
[null,null,null,null,"Silage ",null,null,{"$f":"IF(COUNTA(H8:H11)>0,\"ü\",\"\")","v":""},null,null,"Done all checked"]
[null,null,null,null,"Silage pit located in areas where there is no risk of contamination of groundwater or surface waterway",null,null,null,null,null,"Ticks"]
[null,null,null,null,"Risk of leachate from silage pits identified and managed",null,null,null,null,null,"TickAreas"]
[null,null,null,null,"No silage pits are located in areas of Mahinga kai value",null,null,null,null,null,"Dropdowns"]
[]
[null,null,null,null,"Offal pits",null,null,{"$f":"IF(COUNTA(H13:H15)>0,\"ü\",\"\")","v":""},null,null,"Tick Groups"]
[null,null,null,null,"Offal pit is located in an area where there is no risk of contamination of ground or surface water",null,null,null,null,null,"Show Hide"]
[null,null,null,null,"No offal pits are located in areas adjacent to sites with mahinga kai value",null,null,null,null,null,"Clear Ticks"]
[]
[null,null,null,null,"Rubbish dumps",null,null,{"$f":"IF(COUNTA(H17:H19)>0,\"ü\",\"\")","v":""}]
[null,null,null,null,"Farm rubbish dump located in an area where there is no risk of contamination of ground or surface water"]
[null,null,null,null,"No rubbish pits are located in areas adjacent to sites with Mahinga kai value"]
[]
[]
[]
[null,null,null,null,"Additional actions proposed to meet Point Source objective and target",null,null,"Tick","Additional comments"]
[null,null,null,null,"Relocate offal pit from its current location because of the risk of ground or surface water contamination."]
[null,null,null,null,"Relocate silage pit/stacks from its current location because of the risk of ground or surface water contamination."]
[null,null,null,null,"Relocate rubbish pit from its current location because of the risk of ground or surface water contamination."]

{"sheet":"WaterUse","index":13,"n_rows":19,"n_cols":10,"rows_kept":19,"cut":false,"hidden":false,"merged":[[18,4,18,6],[19,4,19,6],[13,4,13,6],[14,4,14,6],[15,4,15,6],[16,4,16,6],[17,4,17,6],[10,4,10,5],[5,4,5,5],[6,4,6,5],[0,4,0,5],[0,6,0,7],[1,5,1,8],[3,5,3,8],[9,4,9,5],[7,4,7,5],[8,4,8,5],[2,4,2,8]]}
[null,null,null,null,"Management Area: Water use (excluding irrigation water) ",null,null,null,null,"User Guide Notes"]
[null,null,null,null," Objective ","To use water efficiently ensuring that actual; use of water is monitored and efficient. "]
[null,null,null,null,"Mahinga kai explanation: When using water we also have a responsibility to care for water so that we and future generations can flourish. This is why it is taonga or a treasure. All water use must avoid wastage, so careful management and good maintenance of stockwater and dairyshed systems will help ensure this occurs on farm."]
[null,null,null,null," Target 1 ","Actual water use is efficient for the end use."]
[]
[null,null,null,null,"Currrent practices",null,"Evidence","Tick","Additional comments"]
[1,"WU","Awu","For","Annual water use checklist completed"]
[2,"WU","Awu","For","All water use on the farm is measured and monitored (excluding for houses/domestic use)"]
[4,"WU","Awu","For","Water is used efficiently in the dairy shed"]
[5,"WU","Awu","For","Reticulated water system is managed and maintained to avoid wasted water"]
[7,"WU","Awu","For"]
[null,null,null,null,null,null,null,"ü"]
[]
[null,null,null,null,"Additional actions proposed to meet Water Use Objective and target.",null,null,"Tick","Additional comments"]
[15,"WU","RA","Ac","Prepare a water use checklist for use on farm"]
[16,"WU","RA","Ac","Ensure all water takes are metered as required under Regional Council rules."]
[18,"WU","RA","Ac","Upgrade dairy shed water use to ensure water is used efficiently"]
[19,"WU","RA","Ac","Upgrade reticulated water system  to ensure water is used efficiently"]
[20,"WU","RA","Ac"]

{"sheet":"Nutrients_OTOP","index":14,"n_rows":91,"n_cols":10,"rows_kept":91,"cut":false,"hidden":false,"merged":[[88,4,88,6],[89,4,89,6],[90,4,90,6],[91,4,91,6],[82,4,82,6],[83,4,83,6],[84,4,84,6],[85,4,85,6],[86,4,86,6],[87,4,87,6],[81,4,81,6],[68,5,68,6],[70,4,70,5],[71,4,71,5],[72,4,72,5],[73,4,73,5],[74,4,74,6],[76,4,76,6],[77,4,77,6],[78,4,78,6],[79,4,79,6],[80,4,80,6],[67,4,67,6],[56,4,56,5],[57,4,57,5],[58,4,58,5],[59,4,59,5],[60,4,60,5],[61,4,61,5],[62,4,62,5],[63,4,63,5],[64,4,64,5],[65,4,65,5],[66,4,66,5],[55,4,55,5],[42,4,42,5],[43,4,43,5],[44,4,44,5],[46,5,46,6],[48,4,48,5],[49,4,49,5],[50,4,50,5],[51,4,51,5],[52,4,52,5],[53,4,53,5],[54,4,54,5],[41,4,41,5],[30,4,30,5],[31,4,31,5],[32,4,32,5],[33,4,33,5],[34,4,34,5],[35,4,35,5],[36,4,36,5],[37,4,37,5],[38,4,38,5],[39,4,39,5],[40,4,40,5],[29,4,29,5],[18,4,18,5],[19,4,19,5],[20,4,20,5],[21,4,21,5],[22,4,22,5],[23,4,23,5],[24,4,24,5],[25,4,25,5],[26,4,26,5],[27,4,27,5],[28,4,28,5],[16,5,16,8],[0,4,0,5],[1,5,1,8],[2,5,2,8],[4,5,4,8],[5,5,5,8],[7,6,7,7],[10,4,10,5],[11,4,11,5],[12,4,12,5],[13,4,13,5],[14,4,14,5]]}
[null,null,null,null," Management Area: Nutrient OTOP",null,null,null,null,"User Guide Notes"]
[null,null,null,null," Objective 1","To use nutrients efficiently and minimise nutrient losses to water."]
[null,null,null,null," Objective 2","Nutrient losses do not exceed permitted or consented nitrogen limits"]
[]
[null,null,null,null," Target 1 ","Nitrogen losses from farming activities are at or below the farms consented nitrogen loss limit"]
[null,null,null,null," Target 1a ","Available nitrogen loss mitigation measures (excl. those associated with irrigation, fertiliser or effluent) are implemented."]
[null,null,null,null,null,null,null,{"$f":"Nutrients_OTOP!H20=IF(COUNTA(H8:H12)>0,\"ü\",\"\")","v":false}]
[null,null,null,null,"N Loss Limit",25,"Overseer version",null,6.3]
[null,null,null,null,"Current N loss",23,"Overseer version",null,6.3]
[]
[null,null,null,null,"Targets 1 & 1a: Current practices",null," Evidence","Tick","Additional comments"]
[null,null,null,null,"The current nutrient budget N loss number is at or below the required N loss limit for the property"]
[null,null,null,null,"The current N loss rate is above the required N loss limit for the property but considered to be farming at GMP loss rate because of other factors not considered in Overseer calculation"]
[null,null,null,null,"Additional nitrogen loss mitigation measures (excl those associated with irrigation, fertiliser or effluent) have been implemented which will help lower N losses. "]
[]
[null,null,null,null,null,null,null,"Keep"]
[null,null,null,null," Target 2","Phosphorus and sediment losses from farming activities are minimised."]
[]
[null,null,null,null,"Target 2: Current practices",null," Evidence","Tick","Additional comments"]
[null,null,null,null,"P and sediment loss risks",null,null,{"$f":"IF(COUNTA(H21:H23)>0,\"ü\",\"\")","v":""}]
[null,null,null,null,"High risk phosphorus and sediment loss farming practices have been identified.  Measures in place to mitigate risks."]
[null,null,null,null,"Critical source areas have been clearly identified and the nutrient and sediment losses from these area are appropriately managed"]
[]
[null,null,null,null,"P fertiliser applications",null,null,{"$f":"IF(COUNTA(H25:H27)>0,\"ü\",\"\")","v":""}]
[null,null,null,null,"Soil nutrient status, specifically Olsen P, is maintained at or around the agronomic optimum levels"]
[null,null,null,null,"Slow release phosphorus fertilisers are used where risk of Phosphorus loss from conventional P fertilisers are high."]
[]
[null,null,null,null,"Cultivation",null,null,{"$f":"IF(COUNTA(H29:H32)>0,\"ü\",\"\")","v":""}]
[null,null,null,null,"Minimum or no till cultivation techniques are used when high risk of run-off or flooding of cultivated paddocks."]
[null,null,null,null,"Minimum or no till cultivation techniques are used when high risk of wind or water erosion."]
[null,null,null,null,"Vegetated riparian margins of sufficient width are left to adequately filter any runoff from cultivated paddocks."]
[]
[null,null,null,null,"Drain management",null,null,{"$f":"IF(COUNTA(H34:H37)>0,\"ü\",\"\")","v":""}]
[null,null,null,null,"Drains are maintained with good shape and vegetation"]
[null,null,null,null,"Measures in place to minimise the need for drain cleaning."]
[null,null,null,null,"Drain margins are planted to shade drain and reduce weed growth. "]
[]
[null,null,null,null,"Winter forage grazing ",null,null,{"$f":"IF(COUNTA(H39:H45)>0,\"ü\",\"\")","v":""}]
[null,null,null,null,"Winter grazing blocks are located in low risk areas for phosphorus and sediment loss - pre planning undertaken"]
[null,null,null,null,"Winter forage crops are located in areas of low risk from flooding, soil loss and land damage"]
[null,null,null,null,"A  grazing plan has been prepared and is being used as a guide for grazing particularly during wet winters and grazing high risk areas. "]
[null,null,null,null,"Strip next to riparian margins is grazed last when break feeding winter feed crops"]
[null,null,null,null,"Vegetated buffer strip of sufficient width are in place to filter any runoff from grazed fodder crop blocks. "]
[null,null,null,null,"Vegetated buffer strip of sufficient width is left in the centre of gullies on hill blocks to filter any runoff. Strip next to the gully is grazed last."]
[]
[null,null,null,null,null,null,null,"Keep"]
[null,null,null,null," Target 3","Manage the amount, timing and application of fertiliser inputs to match the predicted plant requirements and minimise nutrient losses."]
[]
[null,null,null,null,"Target 3: Current practices",null," Evidence","Tick","Additional comments"]
[null,null,null,null,"Fertiliser rates",null,null,{"$f":"IF(COUNTA(H51:H57)>0,\"ü\",\"\")","v":""}]
[null,null,null,null,"Plant analysis is used as an aid to determining crop requirements and fertiliser needs."]
[null,null,null,null,"Regular soil tests undertaken as aid to determining fertiliser needs"]
[null,null,null,null,"Fertilizer application rates based on advisor's recommendations"]
[null,null,null,null,"Industry approved tools (e.g. crop calculator) used to determine fertilizer rates "]
[null,null,null,null,"Deep soil nitrogen testing is used as basis of determining nitrogen applications to crops"]
[null,null,null,null,"Nitrogen applications to dairy effluent blocks take into account the nitrogen content in effluent"]
[]
[null,null,null,null,"Fertiliser spreading & placement",null,null,{"$f":"IF(COUNTA(H59:H62)>0,\"ü\",\"\")","v":""}]
[null,null,null,null,"Contractors used for fertiliser spreading are 'Spreadmark' certified"]
[null,null,null,null,"Equipment  used for spreading fertiliser is calibrated according to design specifications appropriate for the product used."]
[null,null,null,null,"GPS technologies are used for the placement of fertiliser"]
[]
[null,null,null,null,"Fertiliser timing",null,null,{"$f":"IF(COUNTA(H64:H67)>0,\"ü\",\"\")","v":""}]
[null,null,null,null,"No phosphorus fertiliser is applied in high risk months of May to September"]
[null,null,null,null,"No nitrogen fertiliser is applied in the high risk months of May, June and July."]
[null,null,null,null,"Fertiliser is not applied when soils are at field capacity and/or soil temperatures are below 6 degrees"]
[]
[]
[null,null,null,null," Target 4","Store and load fertiliser to minimise the risk of spillage, leaching and loss into waterbodies"]
[]
[null,null,null,null,"Target 4: Current practices",null," Evidence","Tick","Additional comments"]
[null,null,null,null,"Fertiliser storage sites are designed and managed to avoid nutrient leaching loss to any water body."]
[null,null,null,null,"Fertiliser is loaded in a way that minimises the risk of spillage resulting in leaching and losses to waterbodies."]
[]
[]
[]
[null,null,null,null,"Additional actions required to meet nutrient management targets and objective",null,null,"Tick","Additional comments"]
[null,null,null,null,"Obtain an updated nutrient budget for the property"]
[null,null,null,null,"Put in place a plan to reduce N losses from the property to a level at or below the NDA applied to the property."]
[null,null,null,null,"Map the Critical source areas on the property and develop a plan for the management of these areas."]
[null,null,null,null,"Lower soil Olsen P levels to around optimum levels for plant growth."]
[null,null,null,null,"Leave wider buffer margins when cultivating next to waterways to ensure sufficient buffering and filtering of any runoff."]
[null,null,null,null,"Review and update the current approach to drain cleaning and maintenance to minimise sediment and nutrient inputs into the drainage system"]
[null,null,null,null,"Where options exist, locate winter forage crops in lower risk paddocks away from waterways."]
[null,null,null,null,"When planting winter forage crops on sloping land with gullies through it, leave the gullies unplanted to act as filter zones for any run-off."]
[null,null,null,null,"Adjust nitrogen fertiliser applications to the effluent blocks to take into account N in the effluent."]
[null,null,null,null,"Ensure that all fertiliser applied on the property by contractors, is applied by a contractor with Spreadmark Accreditation."]
[null,null,null,null,"Ensure that all farm owned equipment used spreading fertiliser on the property, is correctly calibrated for the product used."]
[null,null,null,null,"Ensure no nitrogen fertiliser is applied during the high leaching loss risk months of May, June and July unless justified with soil temperature and pasture growth data"]
[null,null,null,null,"Make all necessary changes to the fertiliser storage facility and loading area to ensure the risk of leaching and loss to waterways is minimised."]
[null,null,null,null,"Make all necessary changes to the fertiliser loading arrangements to ensure the risk of leaching and loss to waterways is minimised."]

{"sheet":"Nutrients_Waimak","index":15,"n_rows":91,"n_cols":10,"rows_kept":91,"cut":false,"hidden":false,"merged":[[88,4,88,6],[89,4,89,6],[90,4,90,6],[91,4,91,6],[82,4,82,6],[83,4,83,6],[84,4,84,6],[85,4,85,6],[86,4,86,6],[87,4,87,6],[81,4,81,6],[68,5,68,6],[70,4,70,5],[71,4,71,5],[72,4,72,5],[73,4,73,5],[74,4,74,6],[76,4,76,6],[77,4,77,6],[78,4,78,6],[79,4,79,6],[80,4,80,6],[67,4,67,6],[56,4,56,5],[57,4,57,5],[58,4,58,5],[59,4,59,5],[60,4,60,5],[61,4,61,5],[62,4,62,5],[63,4,63,5],[64,4,64,5],[65,4,65,5],[66,4,66,5],[55,4,55,5],[42,4,42,5],[43,4,43,5],[44,4,44,5],[46,5,46,6],[48,4,48,5],[49,4,49,5],[50,4,50,5],[51,4,51,5],[52,4,52,5],[53,4,53,5],[54,4,54,5],[41,4,41,5],[30,4,30,5],[31,4,31,5],[32,4,32,5],[33,4,33,5],[34,4,34,5],[35,4,35,5],[36,4,36,5],[37,4,37,5],[38,4,38,5],[39,4,39,5],[40,4,40,5],[29,4,29,5],[18,4,18,5],[19,4,19,5],[20,4,20,5],[21,4,21,5],[22,4,22,5],[23,4,23,5],[24,4,24,5],[25,4,25,5],[26,4,26,5],[27,4,27,5],[28,4,28,5],[16,5,16,8],[0,4,0,5],[1,5,1,8],[2,5,2,8],[4,5,4,8],[5,5,5,8],[7,6,7,7],[10,4,10,5],[11,4,11,5],[12,4,12,5],[13,4,13,5],[14,4,14,5]]}
[null,null,null,null," Management Area: Nutrient Waimakariri",null,null,null,null,"User Guide Notes"]
[null,null,null,null," Objective 1","To use nutrients efficiently and minimise nutrient losses to water."]
[null,null,null,null," Objective 2","Nutrient losses do not exceed permitted or consented nitrogen limits"]
[]
[null,null,null,null," Target 1 ","Nitrogen losses from farming activities are at or below the farms consented nitrogen loss limit"]
[null,null,null,null," Target 1a ","Available nitrogen loss mitigation measures (excl. those associated with irrigation, fertiliser or effluent) are implemented."]
[null,null,null,null,null,null,null,{"$f":"Nutrients_Waimak!H20=IF(COUNTA(H8:H12)>0,\"ü\",\"\")","v":false}]
[null,null,null,null,"N Loss Limit",450,"Overseer version",null,6.3]
[null,null,null,null,"Current N loss",24,"Overseer version",null,6.3]
[]
[null,null,null,null,"Targets 1 & 1a: Current practices",null," Evidence","Tick","Additional comments"]
[null,null,null,null,"The current nutrient budget N loss number is at or below the required N loss limit for the property"]
[null,null,null,null,"The current N loss rate is above the required N loss limit for the property but considered to be farming at GMP loss rate because of other factors not considered in Overseer calculation"]
[null,null,null,null,"Additional nitrogen loss mitigation measures (excl those associated with irrigation, fertiliser or effluent) have been implemented which will help lower N losses. "]
[]
[null,null,null,null,null,null,null,"Keep"]
[null,null,null,null," Target 2","Phosphorus and sediment losses from farming activities are minimised."]
[]
[null,null,null,null,"Target 2: Current practices",null," Evidence","Tick","Additional comments"]
[null,null,null,null,"P and sediment loss risks",null,null,{"$f":"IF(COUNTA(H21:H23)>0,\"ü\",\"\")","v":""}]
[null,null,null,null,"High risk phosphorus and sediment loss farming practices have been identified.  Measures in place to mitigate risks."]
[null,null,null,null,"Critical source areas have been clearly identified and the nutrient and sediment losses from these area are appropriately managed"]
[]
[null,null,null,null,"P fertiliser applications",null,null,{"$f":"IF(COUNTA(H25:H27)>0,\"ü\",\"\")","v":""}]
[null,null,null,null,"Soil nutrient status, specifically Olsen P, is maintained at or around the agronomic optimum levels"]
[null,null,null,null,"Slow release phosphorus fertilisers are used where risk of Phosphorus loss from conventional P fertilisers are high."]
[]
[null,null,null,null,"Cultivation",null,null,{"$f":"IF(COUNTA(H29:H32)>0,\"ü\",\"\")","v":""}]
[null,null,null,null,"Minimum or no till cultivation techniques are used when high risk of run-off or flooding of cultivated paddocks."]
[null,null,null,null,"Minimum or no till cultivation techniques are used when high risk of wind or water erosion."]
[null,null,null,null,"Vegetated riparian margins of sufficient width are left to adequately filter any runoff from cultivated paddocks."]
[]
[null,null,null,null,"Drain management",null,null,{"$f":"IF(COUNTA(H34:H37)>0,\"ü\",\"\")","v":""}]
[null,null,null,null,"Drains are maintained with good shape and vegetation"]
[null,null,null,null,"Measures in place to minimise the need for drain cleaning."]
[null,null,null,null,"Drain margins are planted to shade drain and reduce weed growth. "]
[]
[null,null,null,null,"Winter forage grazing ",null,null,{"$f":"IF(COUNTA(H39:H45)>0,\"ü\",\"\")","v":""}]
[null,null,null,null,"Winter grazing blocks are located in low risk areas for phosphorus and sediment loss - pre planning undertaken"]
[null,null,null,null,"Winter forage crops are located in areas of low risk from flooding, soil loss and land damage"]
[null,null,null,null,"A  grazing plan has been prepared and is being used as a guide for grazing particularly during wet winters and grazing high risk areas. "]
[null,null,null,null,"Strip next to riparian margins is grazed last when break feeding winter feed crops"]
[null,null,null,null,"Vegetated buffer strip of sufficient width are in place to filter any runoff from grazed fodder crop blocks. "]
[null,null,null,null,"Vegetated buffer strip of sufficient width is left in the centre of gullies on hill blocks to filter any runoff. Strip next to the gully is grazed last."]
[]
[null,null,null,null,null,null,null,"Keep"]
[null,null,null,null," Target 3","Manage the amount, timing and application of fertiliser inputs to match the predicted plant requirements and minimise nutrient losses."]
[]
[null,null,null,null,"Target 3: Current practices",null," Evidence","Tick","Additional comments"]
[null,null,null,null,"Fertiliser rates",null,null,{"$f":"IF(COUNTA(H51:H57)>0,\"ü\",\"\")","v":""}]
[null,null,null,null,"Plant analysis is used as an aid to determining crop requirements and fertiliser needs."]
[null,null,null,null,"Regular soil tests undertaken as aid to determining fertiliser needs"]
[null,null,null,null,"Fertilizer application rates based on advisor's recommendations"]
[null,null,null,null,"Industry approved tools (e.g. crop calculator) used to determine fertilizer rates "]
[null,null,null,null,"Deep soil nitrogen testing is used as basis of determining nitrogen applications to crops"]
[null,null,null,null,"Nitrogen applications to dairy effluent blocks take into account the nitrogen content in effluent"]
[]
[null,null,null,null,"Fertiliser spreading & placement",null,null,{"$f":"IF(COUNTA(H59:H62)>0,\"ü\",\"\")","v":""}]
[null,null,null,null,"Contractors used for fertiliser spreading are 'Spreadmark' certified"]
[null,null,null,null,"Equipment  used for spreading fertiliser is calibrated according to design specifications appropriate for the product used."]
[null,null,null,null,"GPS technologies are used for the placement of fertiliser"]
[]
[null,null,null,null,"Fertiliser timing",null,null,{"$f":"IF(COUNTA(H64:H67)>0,\"ü\",\"\")","v":""}]
[null,null,null,null,"No phosphorus fertiliser is applied in high risk months of May to September"]
[null,null,null,null,"No nitrogen fertiliser is applied in the high risk months of May, June and July."]
[null,null,null,null,"Fertiliser is not applied when soils are at field capacity and/or soil temperatures are below 6 degrees"]
[]
[]
[null,null,null,null," Target 4","Store and load fertiliser to minimise the risk of spillage, leaching and loss into waterbodies"]
[]
[null,null,null,null,"Target 4: Current practices",null," Evidence","Tick","Additional comments"]
[null,null,null,null,"Fertiliser storage sites are designed and managed to avoid nutrient leaching loss to any water body."]
[null,null,null,null,"Fertiliser is loaded in a way that minimises the risk of spillage resulting in leaching and losses to waterbodies."]
[]
[]
[]
[null,null,null,null,"Additional actions required to meet nutrient management targets and objective",null,null,"Tick","Additional comments"]
[null,null,null,null,"Obtain an updated nutrient budget for the property"]
[null,null,null,null,"Put in place a plan to reduce N losses from the property to a level at or below the NDA applied to the property."]
[null,null,null,null,"Map the Critical source areas on the property and develop a plan for the management of these areas."]
[null,null,null,null,"Lower soil Olsen P levels to around optimum levels for plant growth."]
[null,null,null,null,"Leave wider buffer margins when cultivating next to waterways to ensure sufficient buffering and filtering of any runoff."]
[null,null,null,null,"Review and update the current approach to drain cleaning and maintenance to minimise sediment and nutrient inputs into the drainage system"]
[null,null,null,null,"Where options exist, locate winter forage crops in lower risk paddocks away from waterways."]
[null,null,null,null,"When planting winter forage crops on sloping land with gullies through it, leave the gullies unplanted to act as filter zones for any run-off."]
[null,null,null,null,"Adjust nitrogen fertiliser applications to the effluent blocks to take into account N in the effluent."]
[null,null,null,null,"Ensure that all fertiliser applied on the property by contractors, is applied by a contractor with Spreadmark Accreditation."]
[null,null,null,null,"Ensure that all farm owned equipment used spreading fertiliser on the property, is correctly calibrated for the product used."]
[null,null,null,null,"Ensure no nitrogen fertiliser is applied during the high leaching loss risk months of May, June and July unless justified with soil temperature and pasture growth data"]
[null,null,null,null,"Make all necessary changes to the fertiliser storage facility and loading area to ensure the risk of leaching and loss to waterways is minimised."]
[null,null,null,null,"Make all necessary changes to the fertiliser loading arrangements to ensure the risk of leaching and loss to waterways is minimised."]

{"sheet":"MK_Selwyn","index":16,"n_rows":49,"n_cols":10,"rows_kept":49,"cut":false,"hidden":false,"merged":[[40,4,40,5],[34,4,34,5],[26,5,26,8],[8,4,8,5],[9,4,9,5],[10,4,10,5],[19,4,19,5],[20,4,20,5],[18,4,18,5],[33,4,33,5],[35,4,35,6],[36,5,36,8],[38,4,38,5],[39,4,39,5],[28,4,28,5],[29,4,29,5],[48,4,48,6],[41,4,41,6],[43,4,43,6],[44,4,44,6],[45,4,45,6],[46,4,46,6],[47,4,47,6],[30,4,30,5],[31,4,31,5],[32,4,32,5],[22,4,22,5],[23,4,23,5],[24,4,24,5],[25,4,25,6],[17,4,17,5],[21,4,21,5],[7,4,7,5],[0,4,0,7],[1,5,1,8],[3,5,3,8],[5,4,5,5],[6,4,6,5],[11,4,11,5],[12,4,12,5],[13,4,13,5],[14,4,14,6],[15,5,15,8]]}
[null,null,null,null," Management Area: \n Mahinga kai (Selwyn-Waihora)",null,null,null,null,"User Guide Notes"]
[null,null,null,null," Objective ","To protect mahinga kai and manage waterways and drains recognising their cultural and ecological sensitivity to discharges of contaminants within thew Cultural Landscape Values Management Area"]
[]
[null,null,null,null," Target 1 ","Mahinga kai values are protected by implementing all other Farm Environment Plan Objectives and Targets taking mahinga kai values into account"]
[]
[null,null,null,null,"Current practices",null,"Evidence","Tick","Additional comments"]
[1,"Wat","Sto","For","Irrigation Management Objective receive a High Level of Confidence"]
[5,"Wat","Sto","For","Nutrient Management Objectives receives a High Level of Confidence"]
[null,null,null,null,"Soil Management Objective receives a High Level of Confidence"]
[null,null,null,null,"Collected Animal Effluent Management Objective receives a High Level of Confidence"]
[null,null,null,null,"Waterbody Management Objective receives a High Level of Confidence"]
[6,"Wat","Sto","For","Point source Objective receives a High Level of Confidence"]
[7,"Wat","Sto","For","Water use receives a High Level of Confidence "]
[8,"Wat","Sto","For"]
[null,null,null,null,null,null,null,"Keep"]
[null,null,null,null," Target 2","Mahinga kai species and habitats are protected when drain management and vegetation clearance occurs.  "]
[]
[null,null,null,null,"Current practices",null,"Evidence","Tick","Additional comments"]
[13,"Wat","Mar","For","Practices are consistent with Selwyn-Waihora: A guide to managing your drains (Waihora Ellesmere Trust)."]
[null,null,null,null,"Excavators are not used for drain clearance between Nov and April where eels are present"]
[null,null,null,null,"In īnanga spawning areas disturbance is avoided between February and November"]
[null,null,null,null,"To protect groundwater quality drains are not deepened below the confining layer."]
[15,"Wat","Mar","For","No vegetation clearance is undertaken in the wet season."]
[19,"Wat","Mar","For","Drain material is disposed of in a manner that minimises risk of sediment loss back to waterbodies and damage to mahinga kai species and habitats"]
[20,"Wat","Mar","For"]
[null,null,null,null,null,null,null,"Keep"]
[null,null,null,null," Targets 3","Mahinga kai habitats and species are sustained through the management of remnant native vegetation and wetlands"]
[]
[null,null,null,null,"Current practices",null,"Evidence","Tick","Additional comments"]
[28,"Wat","Run","For","Identified ways to enhance on farm biodiversity. "]
[29,"Wat","Run","For","Areas of remnant native vegetation, wetlands and springs are being protected."]
[32,"Wat","Run","For","An active programme to control or remove pest species is in place"]
[33,"Wat","Run","For","Habitat and corridors for mahinga kai species exist."]
[null,null,null,null,"Degraded wetlands in the CLVMA are being restored."]
[36,"Wat","Run","For"]
[]
[null,null,null,null," Targets 4","Properties within Selwyn District Council Drainage Scheme comply with any District Council Discharge of Land Drainage Water resource consent"]
[]
[null,null,null,null,"Current practices",null,"Evidence","Tick","Additional comments"]
[44,"Wat","Kai","For","Property compliant with District Council Discharge of Land Drainage Water resource consent"]
[45,"Wat","Kai","For"]
[null,null,null,null,null,null,null,"Keep"]
[]
[null,null,null,null,"Additional actions proposed to meet waterbody management objective and targets",null,null,"Tick","Additional comments"]
[50,"Wat","RA","Ac","Undertake required actions for other management areas to lift their level of confidence ratings."]
[51,"Wat","RA","Ac","Update drain management practices to ensure practices are consistent with the guidelines; \"A guide to managing your drains.\""]
[52,"Wat","RA","Ac","Prepare and implement a Mahinga kai enhancement plan for the property."]
[53,"Wat","RA","Ac","Ensure compliance with District Council Discharge of Land Drainage Water resource consent"]
[54,"Wat","RA","Ac"]

{"sheet":"MK_OTOP","index":17,"n_rows":49,"n_cols":10,"rows_kept":49,"cut":false,"hidden":false,"merged":[[48,4,48,6],[41,4,41,6],[43,4,43,6],[44,4,44,6],[45,4,45,6],[46,4,46,6],[47,4,47,6],[40,4,40,5],[28,4,28,5],[29,4,29,5],[30,4,30,5],[31,4,31,5],[33,4,33,5],[34,4,34,5],[35,4,35,6],[36,5,36,8],[38,4,38,5],[39,4,39,5],[32,4,32,5],[26,5,26,8],[14,4,14,6],[15,5,15,8],[17,4,17,5],[18,4,18,5],[19,4,19,5],[20,4,20,5],[21,4,21,5],[22,4,22,5],[24,4,24,5],[25,4,25,6],[23,4,23,5],[13,4,13,5],[0,4,0,7],[1,5,1,8],[3,5,3,8],[5,4,5,5],[6,4,6,5],[7,4,7,5],[8,4,8,5],[9,4,9,5],[10,4,10,5],[11,4,11,5],[12,4,12,5]]}
[null,null,null,null," Management Area: \n Mahinga kai (OTOP)",null,null,null,null,"User Guide Notes"]
[null,null,null,null," Objective ","To protect mahinga kai values"]
[]
[null,null,null,null," Target 1 ","Mahinga kai values are protected by implementing all other Farm Environment Plan Objectives and Targets taking mahinga kai values into account"]
[]
[null,null,null,null,"Current practices",null,"Evidence","Tick","Additional comments"]
[1,"Wat","Sto","For","Irrigation Management Objective receive a High Level of Confidence"]
[5,"Wat","Sto","For","Nutrient Management Objectives receives a High Level of Confidence"]
[null,null,null,null,"Soil Management Objective receives a High Level of Confidence"]
[null,null,null,null,"Collected Animal Effluent Management Objective receives a High Level of Confidence"]
[null,null,null,null,"Waterbody Management Objective receives a High Level of Confidence"]
[6,"Wat","Sto","For","Point source Objective receives a High Level of Confidence"]
[7,"Wat","Sto","For","Water use receives a High Level of Confidence "]
[8,"Wat","Sto","For"]
[null,null,null,null,null,null,null,"Keep"]
[null,null,null,null," Target 2","Farming activities are unertaken in a manner that minimises adverse effects on existing indigenous vegetation"]
[]
[null,null,null,null,"Current practices",null,"Evidence","Tick","Additional comments"]
[13,"Wat","Mar","For","Areas of existing indigenous vegetation on the property have been identified and  management practices in place to minimise any adverse effects from farming activities."]
[]
[]
[]
[15,"Wat","Mar","For"]
[19,"Wat","Mar","For"]
[20,"Wat","Mar","For"]
[null,null,null,null,null,null,null,"Keep"]
[null,null,null,null," Targets 3","Mahinga kai habitats and species are sustained through the management of remnant native vegetation and wetlands"]
[]
[null,null,null,null,"Current practices",null,"Evidence","Tick","Additional comments"]
[28,"Wat","Run","For","Areas of remnant native vegetation, wetlands and springs are being protected."]
[29,"Wat","Run","For","An active programme to control or remove pest species is in place"]
[32,"Wat","Run","For","Habitat and corridors for mahinga kai species exist."]
[33,"Wat","Run","For"]
[]
[36,"Wat","Run","For"]
[]
[null,null,null,null," Targets 4","Managing pest plants in accordance with regional council rules"]
[]
[null,null,null,null,"Current practices",null,"Evidence","Tick","Additional comments"]
[44,"Wat","Kai","For"]
[45,"Wat","Kai","For"]
[null,null,null,null,null,null,null,"Keep"]
[]
[null,null,null,null,"Additional actions proposed to meet waterbody management objective and targets",null,null,"Tick","Additional comments"]
[50,"Wat","RA","Ac","Undertake required actions for other management areas to lift their level of confidence ratings."]
[51,"Wat","RA","Ac","Update drain management practices to ensure practices are consistent with the guidelines; \"A guide to managing your drains.\""]
[52,"Wat","RA","Ac","Prepare and implement a Mahinga kai enhancement plan for the property."]
[53,"Wat","RA","Ac"]
[54,"Wat","RA","Ac"]

{"sheet":"RA_OTOP","index":18,"n_rows":26,"n_cols":10,"rows_kept":26,"cut":false,"hidden":false,"merged":[[21,4,21,6],[22,4,22,6],[23,4,23,6],[24,4,24,6],[25,4,25,6],[20,4,20,6],[7,4,7,5],[8,4,8,5],[9,4,9,5],[10,4,10,5],[11,5,11,8],[13,4,13,5],[14,4,14,5],[15,4,15,5],[16,4,16,5],[17,4,17,5],[18,4,18,5],[6,4,6,5],[0,4,0,5],[0,6,0,7],[1,5,1,8],[3,5,3,8],[5,4,5,5]]}
[null,null,null,null," Management area: \n  Tuhituhi Nehera (Rock Art) (OTOP)",null,null,null,null,"User Guide Notes"]
[null,null,null,null," Objective ","To protect tuhituhi Neherā sites and the historic, ecological and Ngai Tahu values associated with these sites and their surroundings"]
[]
[null,null,null,null," Target 1 ","Farming practices are managed to protech tuhituhi neherā sites by avoiding effects that may damage or destroy these sites and the values associated with these sites."]
[]
[null,null,null,null,"Current practices",null,"Evidence","Tick","Additional comments"]
[1,"Mah","Val","For"]
[2,"Mah","Val","For"]
[3,"Mah","Val","For"]
[4,"Mah","Val","For"]
[]
[null,null,null,null," Target 2","Stock are excluded from tuthituhi Neherā sites"]
[]
[null,null,null,null,"Current practices",null,"Evidence","Tick","Additional comments"]
[17,"Mah","Dra","For"]
[18,"Mah","Dra","For"]
[19,"Mah","Dra","For"]
[20,"Mah","Dra","For"]
[]
[]
[null,null,null,null,"Additional actions proposed to meet OTOP Rock Art objective and targets",null,null,"Tick","Additional comments"]
[46,"Mah","RA","Ac"]
[47,"Mah","RA","Ac"]
[48,"Mah","RA","Ac"]
[49,"Mah","RA","Ac"]
[50,"Mah","RA","Ac"]

{"sheet":"BD_OTOP","index":19,"n_rows":26,"n_cols":10,"rows_kept":26,"cut":false,"hidden":false,"merged":[[21,4,21,6],[22,4,22,6],[23,4,23,6],[24,4,24,6],[25,4,25,6],[20,4,20,6],[7,4,7,5],[8,4,8,5],[9,4,9,5],[10,4,10,5],[11,5,11,8],[13,4,13,5],[14,4,14,5],[15,4,15,5],[16,4,16,5],[17,4,17,5],[18,4,18,5],[6,4,6,5],[0,4,0,5],[0,6,0,7],[1,5,1,8],[3,5,3,8],[5,4,5,5]]}
[null,null,null,null," Management area: \n Biodiversity (OTOP)",null,null,null,null,"User Guide Notes"]
[null,null,null,null," Objective ","To protect and enhance instream biodiversity values."]
[]
[null,null,null,null," Target 1 ","On the map or aerial photograph of waterbodies required under Part A of this Schedule, specify the location of any spring heads, wetlands and spring-fed streams on the property or within the farming enterprise to recognise their high instream biodiversity values."]
[]
[null,null,null,null,"Current practices",null,"Evidence","Tick","Additional comments"]
[1,"Mah","Val","For"]
[2,"Mah","Val","For"]
[3,"Mah","Val","For"]
[4,"Mah","Val","For"]
[]
[null,null,null,null," Target 2","Prioritise achievement of the targets for Management Area: Waterbody Management for any spring heads, wetlands and spring-fed streams so as to protect and enhance the instream biodiversity values."]
[]
[null,null,null,null,"Current practices",null,"Evidence","Tick","Additional comments"]
[17,"Mah","Dra","For"]
[18,"Mah","Dra","For"]
[19,"Mah","Dra","For"]
[20,"Mah","Dra","For"]
[]
[]
[null,null,null,null,"Additional actions proposed to meet OTOP biodiversity objective and targets",null,null,"Tick","Additional Comments"]
[46,"Mah","RA","Ac"]
[47,"Mah","RA","Ac"]
[48,"Mah","RA","Ac"]
[49,"Mah","RA","Ac"]
[50,"Mah","RA","Ac"]

{"sheet":"MK_Wait","index":20,"n_rows":42,"n_cols":10,"rows_kept":42,"cut":false,"hidden":false,"merged":[[41,4,41,6],[31,4,31,5],[32,4,32,5],[33,4,33,5],[39,4,39,6],[40,4,40,6],[38,4,38,6],[36,4,36,6],[37,4,37,6],[34,4,34,5],[24,4,24,5],[25,4,25,5],[29,5,29,8],[26,4,26,5],[27,4,27,5],[28,4,28,5],[16,4,16,5],[17,4,17,5],[18,4,18,5],[14,5,14,8],[22,5,22,8],[19,4,19,5],[20,4,20,5],[21,4,21,5],[0,4,0,5],[0,6,0,7],[5,4,5,5],[1,5,1,8],[3,5,3,8],[11,4,11,5],[12,4,12,5],[13,4,13,5],[6,4,6,5],[7,4,7,5],[8,4,8,5],[9,4,9,5],[10,4,10,5]]}
[null,null,null,null," Management area: \n Māhinga kai (Upper Waitaki)",null,null,null,null,"User Guide Notes"]
[null,null,null,null," Objective ","To protect mahinga kai values "]
[]
[null,null,null,null," Target 1 ","Mahinga kai values of surface water bodies on property are recognised by achieving other objectives and targets in the FEP\n"]
[]
[null,null,null,null,"Current practices",null,"Evidence","Tick","Additional comments"]
[1,"Mah","Val","For","Current practices on track to achieve irrigation objective"]
[2,"Mah","Val","For","Current practices on track to achieve nutrient objective"]
[3,"Mah","Val","For","Current practices on track to achieve soils objective"]
[4,"Mah","Val","For","Current practices on track to achieve effluent objective"]
[5,"Mah","Val","For","Current practices ob track to achieve waterbody objective"]
[6,"Mah","Val","For","Current practices on track to achieve point source objective"]
[7,"Mah","Val","For","Current practices on track to achieve water use objective"]
[]
[null,null,null,null," Target 2","Mahinga kai values of surface water bodies on property are recognised by maintaining existing indigenous vegetation in accordance with regional and/or district council rules or resource consent conditions."]
[]
[null,null,null,null,"Current practices",null,"Evidence","Tick","Additional comments"]
[18,"Mah","Dra","For","Indigenous vegetation on property as identified through District Plan requirements is protected"]
[19,"Mah","Dra","For","Indigenous vegetation on property as identified through Regional Plan requirements is protected"]
[20,"Mah","Dra","For","Indigenous vegetation on property as identified through resource consent conditions is protected"]
[21,"Mah","Dra","For"]
[]
[null,null,null,null," Target 3","Mahinga kai values of surface water bodies on property are recognised by identifiying opportunities to undertake additional plantings of indigenous vegetation and carry out and manage additional plantings."]
[]
[null,null,null,null,"Current practices",null,"Evidence","Tick","Additional comments"]
[32,"Mah","Hab","For","Sites for additional plantings of indigenous species identified"]
[33,"Mah","Hab","For","Indigenous planting and maintenance programme in place."]
[37,"Mah","Hab","For"]
[]
[null,null,null,null,"Target 4","Mahinga kai values of surface water bodies on property are recognised by undertaking farming activities in a manner that minimises adverse effects on existing indigenous vegetation and additional plantings of indigenous vegetation"]
[]
[null,null,null,null,"Current practices",null,"Evidence","Tick","Additional comments"]
[44,"Mah","SDC","For","Current practices on track as per Target 1 above"]
[]
[]
[]
[null,null,null,null,"Additional actions proposed to meet Mahinga kai-Waitaki Objective and targets.",null,null,"Tick","Additional comments"]
[15,"WU","RA","Ac","Complete proposed actions as identifed in other management areas"]
[16,"WU","RA","Ac","Protect areas of indigenous vegetation on the property as identified trhough District Plan, Regional Plan and/or resource consent condition."]
[18,"WU","RA","Ac","Develop and implement an indigenous planting programme for the property."]
[19,"WU","RA","Ac"]
[20,"WU","RA","Ac"]

{"sheet":"Sheet1","index":21,"n_rows":0,"n_cols":0,"rows_kept":0,"cut":false,"hidden":false,"merged":[]}

{"sheet":"BD_Wait","index":22,"n_rows":26,"n_cols":10,"rows_kept":26,"cut":false,"hidden":true,"merged":[[7,4,7,5],[8,4,8,5],[9,4,9,5],[0,4,0,5],[0,6,0,7],[1,5,1,8],[3,5,3,8],[5,4,5,5],[6,4,6,5],[16,4,16,5],[17,4,17,5],[10,4,10,5],[11,5,11,8],[13,4,13,5],[14,4,14,5],[15,4,15,5],[24,4,24,6],[25,4,25,6],[18,4,18,5],[20,4,20,6],[21,4,21,6],[22,4,22,6],[23,4,23,6]]}
[null,null,null,null," Management area: \n Biodiversity (Upper Waitaki)",null,null,null,null,"User Guide Notes"]
[null,null,null,null," Objective ","To protect and enhance instream biodiversity values."]
[]
[null,null,null,null," Target 1 ","On the map or aerial photograph of waterbodies required under Part A of this Schedule, specify the location of any spring heads, wetlands and spring-fed streams on the property or within the farming enterprise to recognise their high instream biodiversity values."]
[]
[null,null,null,null,"Current practices",null,"Evidence","Tick","Additional comments"]
[1,"Mah","Val","For"]
[2,"Mah","Val","For"]
[3,"Mah","Val","For"]
[4,"Mah","Val","For"]
[]
[null,null,null,null," Target 2","Prioritise achievement of the targets for Management Area: Waterbody Management for any spring heads, wetlands and spring-fed streams so as to protect and enhance the instream biodiversity values."]
[]
[null,null,null,null,"Current practices",null,"Evidence","Tick","Additional comments"]
[17,"Mah","Dra","For"]
[18,"Mah","Dra","For"]
[19,"Mah","Dra","For"]
[20,"Mah","Dra","For"]
[]
[]
[null,null,null,null,"Additional actions proposed to meet Upper Waitaki biodiversity objective and targets",null,null,"Tick","Additioal comments"]
[46,"Mah","RA","Ac"]
[47,"Mah","RA","Ac"]
[48,"Mah","RA","Ac"]
[49,"Mah","RA","Ac"]
[50,"Mah","RA","Ac"]

{"sheet":"Data sheet - do not touch","index":23,"n_rows":25,"n_cols":9,"rows_kept":25,"cut":false,"hidden":true,"merged":[]}
[]
["Enterprises",null,"Yes/No",null,"Inherent risk","Likelihood","Consequence",null,"Farm activities"]
["Dairy - milking platform only",null,"Yes",null,"Low","Unlikely","Minor",null,"Stock grazing"]
["Dairy - self contained",null,"No",null,"Medium","Likely","Moderate",null,"Winter grazing"]
["Sheep + beef",null,"Partial",null,"High","Very Likely","Major",null,"Fertiliser application"]
["Beef ",null,"N/A",null,null,null,null,null,"Irrigation"]
["Deer",null,null,null,null,null,null,null,"Dairy effluent application"]
["Pigs",null,null,null,null,null,null,null,"Cultivation"]
["Dairy grazing",null,"Adverse effects (Need editing)","Land use",null,null,null,null,"Drain cleaning"]
["Arable ",null,"Contamination of ground water","Pasture",null,null,null,null,"Earthworks"]
["Mixed cropping",null,"Contamination of surface water","Forage crops",null,null,null,null,"Point sources (e.g. offal, silage pits)"]
["Vegetable crops",null,"Stock damage to stream banks","Arable"]
["Other",null,"Loss of soil through water or wind erosion","Small seeds"]
[null,null,"Damage to soil structure and health","Vegetables",null,null,null,null,"Progress"]
[null,null,"Risk to mahinga kai","Other",null,null,null,null,"Not Started"]
[null,null,null,null,null,null,null,null,"Underway"]
[null,null,"Risk Mitigation",null,null,null,null,null,"Finished"]
[null,null,"See irrigation management section"]
[null,null,"See nutrient management section"]
[null,null,"See soils management section"]
[null,null,"See riparian and wetland management section"]
[null,null,"See effluent management section "]
[null,null,"See point source management section"]
[null,null,"See Non irrigation water use section"]
[null,null,"See Mahinga kai management section"]

{"sheet":"Objective Evidence","index":24,"n_rows":172,"n_cols":5,"rows_kept":172,"cut":false,"hidden":true,"merged":[]}
["Number","Targets Objective Evidence\nCode","Description","Target Referring to "]
[1,"TOE1","System design specifications","TI1"]
[2,"TOE2","Installation certificates","TI1"]
[3,"TOE3","Commissioning documentation","TI1"]
[4,"TOE4","Post installation check reports","TI1"]
[5,"TOE5","Field observation","TI1"]
[6,"TOE6","Irrigation system audit","TI2i"]
[7,"TOE7","Bucket test results","TI2i"]
[8,"TOE8","Maintenance records","TI2i"]
[9,"TOE9","Photos","TI2i"]
[10,"TOE10","Irrigation maintenance plan","TI2ii"]
[11,"TOE11","Maintenance records","TI2ii"]
[12,"TOE12","Irrigation management plan","TI2ii"]
[13,"TOE13","Map showing high risk areas","TI2iii"]
[14,"TOE14","Procedures for the management of high risk areas","TI2iii"]
[15,"TOE15","Incident records","TI2iii"]
[16,"TOE16","Water take records","TI2iii"]
[17,"TOE17","Photos","TI2iii"]
[18,"TOE18","Irrigation application depth records","TI2iii"]
[19,"TOE19","Photos","TI2iii"]
[20,"TOE20","GPS Records","TI2iv"]
[21,"TOE21","Crop modelling records","TI2iv"]
[22,"TOE22","Water application records","TI2iv"]
[23,"TOE23","Timers on spray lines","TI2iv"]
[24,"TOE24","Photos","TI2iv"]
[25,"TOE25","Climatic records","TI3"]
[26,"TOE26","Soil moisture monitoring records","TI3"]
[27,"TOE27","Irrigation decision rule procedures","TI3"]
[28,"TOE28","Crop scheduling records","TI3"]
[29,"TOE29","Photos","TI3"]
[30,"TOE30","Operation and maintenance manual","TI4"]
[31,"TOE31","Staff training records","TI4"]
[32,"TOE32","Training certificates","TI4"]
[33,"TOE33","Discussion with Manager/Owner","TI4"]
[34,"TOE34","Discussion with staff","TI4"]
[35,"TOE35","Nutrient budget plus GMP loss rate data","TN1"]
[36,"TOE36","Nutrient budget plus NDA loss rate data","TN1"]
[37,"TOE37","Additional N loss mitigation measures (see comments)","TN1"]
[38,"TOE38",null,"TN1"]
[39,"TOE39","Identified high risk P and sediment loss activities","TN2i"]
[40,"TOE40","Records of measures taken to mitigate P and sediment loss risks from activities","TN2i"]
[41,"TOE41","Critical source area map","TN2i"]
[42,"TOE42","Records of measures taken to mitigate CSA risks","TN2i"]
[43,"TOE43","Photos","TN2i"]
[44,"TOE44","P fertiliser application records and discussions","TN2ii"]
[45,"TOE45","Olsen P test results","TN2ii"]
[46,"TOE46","Fertiliser usage records","TN2ii"]
[47,"TOE47","Photos","TN2iii"]
[48,"TOE48","Cultivation records","TN2iii"]
[49,"TOE49","Photos","TN2iii"]
[50,"TOE50","Photos","TN2iv"]
[51,"TOE51","Drain management records","TN2iv"]
[52,"TOE52","Map showing high risk areas for winter fodder grazing","TN2v"]
[53,"TOE53","Winter grazing and/or wet weather management plan","TN2v"]
[54,"TOE54","Photos","TN2v"]
[55,"TOE55","Photos","TN2vi"]
[56,"TOE56","Nutrient budget","TN3i"]
[57,"TOE57","Soil test results","TN3i"]
[58,"TOE58","Plant analysis results","TN3i"]
[59,"TOE59","Advisors recommendations","TN3i"]
[60,"TOE60","Deep soil N test results","TN3i"]
[61,"TOE61","Fertiliser usage records","TN3i"]
[62,"TOE62","Photos","TN3i"]
[63,"TOE63","Contractors Spreadmark Certificate","TN3ii"]
[64,"TOE64","Fertiliser spreader calibration records","TN3ii"]
[65,"TOE65","GPS fertiliser spreading records","TN3ii"]
[66,"TOE66","Proof of placement records","TN3ii"]
[67,"TOE67","Precision Ag equipment","TN3ii"]
[68,"TOE68","Photos","TN3ii"]
[69,"TOE69","Photos","TN3ii"]
[70,"TOE70","Fertiliser application records","TN3iii"]
[71,"TOE71","Soil temperature and fertiliser application records","TN3iii"]
[72,"TOE72","Soil moisture and fertiliser application records","TN3iii"]
[73,"TOE73","Photos","TN4"]
[74,"TOE74","Field observation","TN4"]
[75,"TOE75","Map showing high erosion risk areas","TS1i"]
[76,"TOE76","Management plan for high erosion risk areas","TS1i"]
[77,"TOE77","Field observation","TS1ii"]
[78,"TOE78","Record of actions taken to address erosion problems","TS1ii"]
[79,"TOE79","Photos","TS1ii"]
[80,"TOE80","Photos","TS1iii"]
[81,"TOE81","Cultivation records","TS1iii"]
[82,"TOE82","Field observation","TS1iii"]
[83,"TOE83","Field observation","TS1iv"]
[84,"TOE84","Erosion management plan","TS1iv"]
[85,"TOE85","Farm track field observation","TS1iv"]
[86,"TOE86","Map showing eroding gullies","TS1v"]
[87,"TOE87","Field observation","TS1v"]
[88,"TOE88","Reticulated water supply ","TS1v"]
[89,"TOE89","Field observation","TS1vi"]
[90,"TOE90","Photos","TS1vi"]
[91,"TOE91","Map showing high risk soil compaction areas","TS2i"]
[92,"TOE92","Management plan for managing high risk soil compaction areas","TS2i"]
[93,"TOE93","Wet weather grazing management plan","TS2i"]
[94,"TOE94","Field observation","TS2i"]
[95,"TOE95","Photos","TS2i"]
[96,"TOE96","Photos","TS2ii"]
[97,"TOE97","Soil compaction map","TS2ii"]
[98,"TOE98","Field observation","TS2ii"]
[99,"TOE99","Compaction mitigation equipment","TS2ii"]
[100,"TOE100","Photos","TS2iii"]
[101,"TOE101","Crop records","TS2iii"]
[102,"TOE102","Field observation","TS2iii"]
[103,"TOE103","Dairy effluent design code records","TE1"]
[104,"TOE104","Effluent spreading records","TE1"]
[105,"TOE105","Backflow preventor records","TE1"]
[106,"TOE106","Field observation","TE1"]
[107,"TOE107","Photos","TE1"]
[108,"TOE108","Effluent system risk assessment","TE2i"]
[109,"TOE109","Effluent management incident records","TE2i"]
[110,"TOE110","Effluent management procedures","TE2i"]
[111,"TOE111","Photos","TE2i"]
[112,"TOE112","Effluent system discussions","TE2ii"]
[113,"TOE113","Bucket test results","TE2ii"]
[114,"TOE114","Field observation","TE2ii"]
[115,"TOE115","Photos","TE2ii"]
[116,"TOE116",null,"TE2ii"]
[117,"TOE117",null,"TE2ii"]
[118,"TOE118","Effluent application records ","TE2iii"]
[119,"TOE119","Effluent area plus cow numbers","TE2iii"]
[120,"TOE120","Field observation","TE2iii"]
[121,"TOE121","Photos","TE2iii"]
[122,"TOE122","Fertiliser and effluent application records","TE2iv"]
[123,"TOE123","Nutrient budget","TE2iv"]
[124,"TOE124","GPS records","TE2v"]
[125,"TOE125","Equipment inspection","TE2v"]
[126,"TOE126","Photos","TE2v"]
[127,"TOE127","Dairy effluent consent requirements","TE3"]
[128,"TOE128","Dairy effluent storage calculator data","TE3"]
[129,"TOE129","Effluent application records","TE3"]
[130,"TOE130","Field observation","TE3"]
[131,"TOE131","Staff training records","TE4"]
[132,"TOE132","Discussions with staff","TE4"]
[133,"TOE133","Copy of regional council rules","TW1"]
[134,"TOE134","Field observation","TW1"]
[135,"TOE135","Map showing known mahinga kai sites","TW1"]
[136,"TOE136","Photos","TW1"]
[137,"TOE137","Photos","TW2"]
[138,"TOE138","Map showing paddock low points and management measures","TW2"]
[139,"TOE139","Riparian planting programme","TW2"]
[140,"TOE140","Riparian planting programme implementation","TW2"]
[141,"TOE141","Wetland enhancement plan","TW2"]
[142,"TOE142","Field observation","TW3"]
[143,"TOE143","Photos","TW3"]
[144,"TOE144","Mahinga kai enhancement plan","TW4"]
[145,"TOE145","Photos","TW4"]
[146,"TOE146","Field observation","TP1i"]
[147,"TOE147","Silage leachate collection facilities sighted","TP1i"]
[148,"TOE148","Field observation","TP1ii"]
[149,"TOE149","Offal pit location map","TP1ii"]
[150,"TOE150","Field observation","TP1iii"]
[151,"TOE151","Rubbish dump location map","TP1iii"]
[152,"TOE152","Photos","TPiv"]
[153,"TOE153","Water use checklist","TWU1"]
[154,"TOE154","Water meter data","TWU1"]
[155,"TOE155","Photos","TWU1"]
[156,"TOE156","See irrigation management area","MkWai1"]
[157,"TOE157","See nutrient management area","MkWai1"]
[158,"TOE158","See soils management area","MkWai1"]
[159,"TOE159","See effluent management area","MkWai1"]
[160,"TOE160","See waterbodies management area","MkWai1"]
[161,"TOE161","See point source management area","MkWai1"]
[162,"TOE162","See water use management area","MkWai1"]
[163,"TOE163","Photos","MKWai2"]
[164,"TOE164","Farm map","MKWai2"]
[165,"TOE165","Planting and maintenance plan","MKWai3"]
[166,"TOE166","See Target 1","MKWai4"]
[167,"TOE167","Biodiversity Actions Taken 167","BDWai1","Ian to update  November 2018"]
[168,"TOE168","Biodiversity Actions Taken 168","BDWai2","Ian to update  November 2019"]
[169,"TOE169","Biodiversity Actions Taken 169","BDWai3","Ian to update  November 2020"]
[170,"TOE170","Biodiversity Actions Taken 170","BDWai4","Ian to update  November 2021"]
[171,"TOE171","Biodiversity Actions Taken 171","BDWai5","Ian to update  November 2022"]